Date,Purpose/Category (T),Department/Service (T),Amount Excl VAT,Beneficiary (T)
16/12/2020,Local Restrictions Support Grants � Mandatory (COVID-19),Local Restrictions Support Grants (COVID-19),"1,334.00",99 Station Street Limited
20/11/2020,Local Restrictions Support Grants � Mandatory (COVID-19),Local Restrictions Support Grants (COVID-19),"2,000.00",A & G Uttoxeter
25/11/2020,Local Restrictions Support Grants � Mandatory (COVID-19),Local Restrictions Support Grants (COVID-19),"1,334.00",A and G Uttoxeter
23/11/2020,Local Restrictions Support Grants � Mandatory (COVID-19),Local Restrictions Support Grants (COVID-19),"1,334.00",A and G Uttoxeter
30/11/2020,Local Restrictions Support Grants � Mandatory (COVID-19),Local Restrictions Support Grants (COVID-19),"1,334.00",A Bunch of Blooms
26/11/2020,Wasps Expenditure,Councillors Community Fund,"1,000.00",Abbots Bromley Sports Association
25/11/2020,Local Restrictions Support Grants � Mandatory (COVID-19),Local Restrictions Support Grants (COVID-19),"2,000.00",Abbots Bromley village Hall
04/12/2020,Local Restrictions Support Grants � Mandatory (COVID-19),Local Restrictions Support Grants (COVID-19),"1,334.00",Active Athlete Ltd
04/12/2020,Local Restrictions Support Grants � Mandatory (COVID-19),Local Restrictions Support Grants (COVID-19),"1,334.00",Active Athlete Ltd
16/12/2020,Local Restrictions Support Grants � Discretionary (COVID-19),Local Restrictions Support Grants (COVID-19),"2,000.00",ADVANCE LED LIGHTING SOLUTIONS LTD
20/10/2020,Accommodation Costs (Covid19),Housing Options - Accommodation,"1,050.00",AH Investment Solutions Limited
20/09/2020,Accommodation Costs - B & B/Hotels,Housing Options - Accommodation,"1,085.00",AH Investment Solutions Limited
20/10/2020,Accommodation Costs - B & B/Hotels,Housing Options - Accommodation,"1,170.00",AH Investment Solutions Limited
20/11/2020,Accommodation Costs - B & B/Hotels,Housing Options - Accommodation,"1,125.00",AH Investment Solutions Limited
20/11/2020,Accommodation Costs - B & B/Hotels,Next Steps Accommodation Programme (NSAP),"1,050.00",AH Investment Solutions Limited
20/11/2020,Accommodation Costs - B & B/Hotels,Next Steps Accommodation Programme (NSAP),900.00,AH Investment Solutions Limited
27/11/2020,Local Restrictions Support Grants � Mandatory (COVID-19),Local Restrictions Support Grants (COVID-19),"1,334.00",Ahoy Sailor Vintage
02/12/2020,Consultants,Business Rate Collection,"1,050.00",Airey Consultancy Services Ltd
16/10/2020,Consultants,Council Tax Collection,"1,150.00",Airey Consultancy Services Ltd
22/10/2020,DFG Contractor Payments,Housing Standards,"2,495.09",AKW Medi-Care Ltd
02/10/2020,DFG Contractor Payments,Housing Standards,"2,495.09",AKW Medi-Care Ltd
14/10/2020,DFG Contractor Payments,Housing Standards,"2,495.09",AKW Medi-Care Ltd
21/12/2020,Local Restrictions Support Grants � Mandatory (COVID-19),Local Restrictions Support Grants (COVID-19),"2,000.00",albion bathrooms ltd
29/09/2020,Leased Car Costs,Heads of Service,"3,676.44",Alphabet (Uk) Fleet Management Ltd
09/10/2020,Leased Car Costs,Heads of Service,"2,873.80",Alphabet (Uk) Fleet Management Ltd
09/10/2020,Leased Car Costs,Heads of Service,585.97,Alphabet (Uk) Fleet Management Ltd
16/10/2020,Exhibitions/Events,Horticultural Resource Centre,677.88,Amberol Limited
25/11/2020,Exhibitions/Events,Horticultural Resource Centre,"1,069.02",Amberol Limited
20/11/2020,Local Restrictions Support Grants � Mandatory (COVID-19),Local Restrictions Support Grants (COVID-19),"1,334.00",An Individual
16/12/2020,Local Restrictions Support Grants � Mandatory (COVID-19),Local Restrictions Support Grants (COVID-19),"1,334.00",An Individual
25/11/2020,Local Restrictions Support Grants � Mandatory (COVID-19),Local Restrictions Support Grants (COVID-19),"2,000.00",An Individual
03/11/2020,Flood Compensation Payments,Flood Compensation Payments,"5,000.00",An Individual
16/12/2020,Local Restrictions Support Grants � Mandatory (COVID-19),Local Restrictions Support Grants (COVID-19),"1,334.00",An Individual
04/12/2020,Local Restrictions Support Grants � Mandatory (COVID-19),Local Restrictions Support Grants (COVID-19),"1,334.00",An Individual
04/12/2020,Local Restrictions Support Grants � Mandatory (COVID-19),Local Restrictions Support Grants (COVID-19),"1,334.00",An Individual
30/11/2020,Local Restrictions Support Grants � Mandatory (COVID-19),Local Restrictions Support Grants (COVID-19),"1,334.00",An Individual
18/12/2020,Local Restrictions Support Grants � Mandatory (COVID-19),Local Restrictions Support Grants (COVID-19),"1,334.00",An Individual
27/11/2020,Local Restrictions Support Grants � Mandatory (COVID-19),Local Restrictions Support Grants (COVID-19),"1,334.00",An Individual
30/11/2020,Local Restrictions Support Grants � Mandatory (COVID-19),Local Restrictions Support Grants (COVID-19),"1,334.00",An Individual
07/12/2020,Local Restrictions Support Grants � Mandatory (COVID-19),Local Restrictions Support Grants (COVID-19),"2,000.00",An Individual
02/12/2020,Local Restrictions Support Grants � Mandatory (COVID-19),Local Restrictions Support Grants (COVID-19),"1,334.00",An Individual
10/12/2020,Local Restrictions Support Grants � Mandatory (COVID-19),Local Restrictions Support Grants (COVID-19),"1,334.00",An Individual
27/11/2020,Local Restrictions Support Grants � Mandatory (COVID-19),Local Restrictions Support Grants (COVID-19),"1,334.00",An Individual
10/11/2020,Flood Compensation Payments,Flood Compensation Payments,"4,608.93",An Individual
15/10/2020,Flood Compensation Payments,Flood Compensation Payments,500.00,An Individual
25/11/2020,Local Restrictions Support Grants � Mandatory (COVID-19),Local Restrictions Support Grants (COVID-19),"1,334.00",An Individual
20/11/2020,Local Restrictions Support Grants � Mandatory (COVID-19),Local Restrictions Support Grants (COVID-19),"1,334.00",An Individual
03/11/2020,Flood Compensation Payments,Flood Compensation Payments,"3,822.00",An Individual
16/12/2020,Local Restrictions Support Grants � Discretionary (COVID-19),Local Restrictions Support Grants (COVID-19),"1,334.00",An Individual
21/12/2020,Local Restrictions Support Grants � Mandatory (COVID-19),Local Restrictions Support Grants (COVID-19),"1,334.00",An Individual
19/10/2020,Safer Public Spaces (Covid-19),Re-Opening the High Streets (COVID-19),"1,400.00",An Individual
27/11/2020,Local Restrictions Support Grants � Mandatory (COVID-19),Local Restrictions Support Grants (COVID-19),"1,334.00",An Individual
25/11/2020,Local Restrictions Support Grants � Mandatory (COVID-19),Local Restrictions Support Grants (COVID-19),"1,334.00",An Individual
21/12/2020,Local Restrictions Support Grants � Mandatory (COVID-19),Local Restrictions Support Grants (COVID-19),"1,334.00",An Individual
02/12/2020,Local Restrictions Support Grants � Mandatory (COVID-19),Local Restrictions Support Grants (COVID-19),"1,334.00",An Individual
05/10/2020,Consultants,Environmental Health,672.00,An Individual
03/11/2020,Consultants,Management Local Outbreaks - SCC Grant Env Health (COVID-19),788.66,An Individual
27/11/2020,Local Restrictions Support Grants � Mandatory (COVID-19),Local Restrictions Support Grants (COVID-19),"1,334.00",An Individual
23/12/2020,Local Restrictions Support Grants � Mandatory (COVID-19),Local Restrictions Support Grants (COVID-19),"1,334.00",An Individual
16/11/2020,Flood Compensation Payments,Flood Compensation Payments,"3,930.00",An Individual
18/12/2020,Local Restrictions Support Grants � Mandatory (COVID-19),Local Restrictions Support Grants (COVID-19),"1,334.00",An Individual
27/11/2020,Local Restrictions Support Grants � Mandatory (COVID-19),Local Restrictions Support Grants (COVID-19),"1,334.00",An Individual
10/11/2020,Flood Compensation Payments,Flood Compensation Payments,"2,241.00",An Individual
20/11/2020,Local Restrictions Support Grants � Mandatory (COVID-19),Local Restrictions Support Grants (COVID-19),"1,334.00",An Individual
18/12/2020,Local Restrictions Support Grants � Mandatory (COVID-19),Local Restrictions Support Grants (COVID-19),"1,334.00",An Individual
21/12/2020,Local Restrictions Support Grants � Mandatory (COVID-19),Local Restrictions Support Grants (COVID-19),"2,000.00",An Individual
23/10/2020,Flood Compensation Payments,Flood Compensation Payments,"5,000.00",An Individual
25/11/2020,Local Restrictions Support Grants � Mandatory (COVID-19),Local Restrictions Support Grants (COVID-19),"1,334.00",An Individual
21/12/2020,Local Restrictions Support Grants � Mandatory (COVID-19),Local Restrictions Support Grants (COVID-19),"1,334.00",An Individual
23/11/2020,Local Restrictions Support Grants � Mandatory (COVID-19),Local Restrictions Support Grants (COVID-19),"1,334.00",An Individual
02/12/2020,Local Restrictions Support Grants � Mandatory (COVID-19),Local Restrictions Support Grants (COVID-19),"1,334.00",An Individual
20/11/2020,Local Restrictions Support Grants � Mandatory (COVID-19),Local Restrictions Support Grants (COVID-19),"1,334.00",An Individual
10/12/2020,Local Restrictions Support Grants � Mandatory (COVID-19),Local Restrictions Support Grants (COVID-19),"1,334.00",An Individual
16/12/2020,Professional Theatre Fees,Brewhouse Arts Centre,750.00,An Individual
18/12/2020,Local Restrictions Support Grants � Mandatory (COVID-19),Local Restrictions Support Grants (COVID-19),"1,334.00",An Individual
21/12/2020,Local Restrictions Support Grants � Mandatory (COVID-19),Local Restrictions Support Grants (COVID-19),"1,334.00",An Individual
10/12/2020,Local Restrictions Support Grants � Mandatory (COVID-19),Local Restrictions Support Grants (COVID-19),"1,334.00",An Individual
27/11/2020,Local Restrictions Support Grants � Mandatory (COVID-19),Local Restrictions Support Grants (COVID-19),"1,334.00",An Individual
04/12/2020,Local Restrictions Support Grants � Mandatory (COVID-19),Local Restrictions Support Grants (COVID-19),"1,334.00",An Individual
04/12/2020,Local Restrictions Support Grants � Mandatory (COVID-19),Local Restrictions Support Grants (COVID-19),"1,334.00",An Individual
28/10/2020,Test and Trace Payments - Local Discretionary Scheme (COVID-19),Test and Trace Payments (COVID-19),500.00,An Individual
22/12/2020,Test and Trace Payments - Standard Scheme (COVID-19),Test and Trace Payments (COVID-19),500.00,An Individual
19/11/2020,Test and Trace Payments - Standard Scheme (COVID-19),Test and Trace Payments (COVID-19),500.00,An Individual
11/11/2020,Test and Trace Payments - Standard Scheme (COVID-19),Test and Trace Payments (COVID-19),500.00,An Individual
01/12/2020,Test and Trace Payments - Standard Scheme (COVID-19),Test and Trace Payments (COVID-19),500.00,An Individual
17/12/2020,Test and Trace Payments - Standard Scheme (COVID-19),Test and Trace Payments (COVID-19),500.00,An Individual
09/11/2020,Test and Trace Payments - Standard Scheme (COVID-19),Test and Trace Payments (COVID-19),500.00,An Individual
19/11/2020,Test and Trace Payments - Standard Scheme (COVID-19),Test and Trace Payments (COVID-19),500.00,An Individual
04/11/2020,Test and Trace Payments - Standard Scheme (COVID-19),Test and Trace Payments (COVID-19),500.00,An Individual
01/12/2020,Test and Trace Payments - Standard Scheme (COVID-19),Test and Trace Payments (COVID-19),500.00,An Individual
11/11/2020,Test and Trace Payments - Standard Scheme (COVID-19),Test and Trace Payments (COVID-19),500.00,An Individual
28/10/2020,Test and Trace Payments - Local Discretionary Scheme (COVID-19),Test and Trace Payments (COVID-19),500.00,An Individual
24/11/2020,Test and Trace Payments - Standard Scheme (COVID-19),Test and Trace Payments (COVID-19),500.00,An Individual
11/11/2020,Test and Trace Payments - Local Discretionary Scheme (COVID-19),Test and Trace Payments (COVID-19),500.00,An Individual
26/11/2020,Test and Trace Payments - Standard Scheme (COVID-19),Test and Trace Payments (COVID-19),500.00,An Individual
01/12/2020,Test and Trace Payments - Standard Scheme (COVID-19),Test and Trace Payments (COVID-19),500.00,An Individual
24/11/2020,Test and Trace Payments - Standard Scheme (COVID-19),Test and Trace Payments (COVID-19),500.00,An Individual
28/10/2020,Test and Trace Payments - Standard Scheme (COVID-19),Test and Trace Payments (COVID-19),500.00,An Individual
19/11/2020,Test and Trace Payments - Standard Scheme (COVID-19),Test and Trace Payments (COVID-19),500.00,An Individual
24/11/2020,Test and Trace Payments - Local Discretionary Scheme (COVID-19),Test and Trace Payments (COVID-19),500.00,An Individual
19/11/2020,Test and Trace Payments - Standard Scheme (COVID-19),Test and Trace Payments (COVID-19),500.00,An Individual
22/12/2020,Test and Trace Payments - Standard Scheme (COVID-19),Test and Trace Payments (COVID-19),500.00,An Individual
26/11/2020,Test and Trace Payments - Local Discretionary Scheme (COVID-19),Test and Trace Payments (COVID-19),500.00,An Individual
09/11/2020,Test and Trace Payments - Standard Scheme (COVID-19),Test and Trace Payments (COVID-19),500.00,An Individual
19/11/2020,Test and Trace Payments - Standard Scheme (COVID-19),Test and Trace Payments (COVID-19),500.00,An Individual
02/12/2020,Local Restrictions Support Grants � Mandatory (COVID-19),Local Restrictions Support Grants (COVID-19),"1,334.00",An Individual
04/11/2020,Test and Trace Payments - Standard Scheme (COVID-19),Test and Trace Payments (COVID-19),500.00,An Individual
16/10/2020,Test and Trace Payments - Standard Scheme (COVID-19),Test and Trace Payments (COVID-19),500.00,An Individual
04/11/2020,Test and Trace Payments - Standard Scheme (COVID-19),Test and Trace Payments (COVID-19),500.00,An Individual
04/11/2020,Test and Trace Payments - Local Discretionary Scheme (COVID-19),Test and Trace Payments (COVID-19),500.00,An Individual
24/11/2020,Test and Trace Payments - Standard Scheme (COVID-19),Test and Trace Payments (COVID-19),500.00,An Individual
13/11/2020,Test and Trace Payments - Local Discretionary Scheme (COVID-19),Test and Trace Payments (COVID-19),500.00,An Individual
17/12/2020,Test and Trace Payments - Standard Scheme (COVID-19),Test and Trace Payments (COVID-19),500.00,An Individual
09/11/2020,Test and Trace Payments - Local Discretionary Scheme (COVID-19),Test and Trace Payments (COVID-19),500.00,An Individual
10/12/2020,Test and Trace Payments - Standard Scheme (COVID-19),Test and Trace Payments (COVID-19),500.00,An Individual
03/12/2020,Test and Trace Payments - Standard Scheme (COVID-19),Test and Trace Payments (COVID-19),500.00,An Individual
17/11/2020,Test and Trace Payments - Standard Scheme (COVID-19),Test and Trace Payments (COVID-19),500.00,An Individual
17/11/2020,Test and Trace Payments - Standard Scheme (COVID-19),Test and Trace Payments (COVID-19),500.00,An Individual
22/10/2020,Test and Trace Payments - Local Discretionary Scheme (COVID-19),Test and Trace Payments (COVID-19),500.00,An Individual
13/11/2020,Test and Trace Payments - Standard Scheme (COVID-19),Test and Trace Payments (COVID-19),500.00,An Individual
04/11/2020,Test and Trace Payments - Standard Scheme (COVID-19),Test and Trace Payments (COVID-19),500.00,An Individual
17/11/2020,Test and Trace Payments - Standard Scheme (COVID-19),Test and Trace Payments (COVID-19),500.00,An Individual
08/12/2020,Test and Trace Payments - Standard Scheme (COVID-19),Test and Trace Payments (COVID-19),500.00,An Individual
08/12/2020,Test and Trace Payments - Standard Scheme (COVID-19),Test and Trace Payments (COVID-19),500.00,An Individual
04/11/2020,Test and Trace Payments - Local Discretionary Scheme (COVID-19),Test and Trace Payments (COVID-19),500.00,An Individual
04/11/2020,Test and Trace Payments - Standard Scheme (COVID-19),Test and Trace Payments (COVID-19),500.00,An Individual
11/11/2020,Test and Trace Payments - Standard Scheme (COVID-19),Test and Trace Payments (COVID-19),500.00,An Individual
16/10/2020,Test and Trace Payments - Standard Scheme (COVID-19),Test and Trace Payments (COVID-19),500.00,An Individual
22/10/2020,Test and Trace Payments - Standard Scheme (COVID-19),Test and Trace Payments (COVID-19),500.00,An Individual
28/10/2020,Test and Trace Payments - Standard Scheme (COVID-19),Test and Trace Payments (COVID-19),500.00,An Individual
11/11/2020,Test and Trace Payments - Standard Scheme (COVID-19),Test and Trace Payments (COVID-19),500.00,An Individual
04/11/2020,Test and Trace Payments - Standard Scheme (COVID-19),Test and Trace Payments (COVID-19),500.00,An Individual
18/12/2020,Local Restrictions Support Grants � Mandatory (COVID-19),Local Restrictions Support Grants (COVID-19),"2,000.00",An Individual
04/11/2020,Test and Trace Payments - Local Discretionary Scheme (COVID-19),Test and Trace Payments (COVID-19),500.00,An Individual
13/11/2020,Test and Trace Payments - Standard Scheme (COVID-19),Test and Trace Payments (COVID-19),500.00,An Individual
17/12/2020,Test and Trace Payments - Standard Scheme (COVID-19),Test and Trace Payments (COVID-19),500.00,An Individual
09/11/2020,Test and Trace Payments - Standard Scheme (COVID-19),Test and Trace Payments (COVID-19),500.00,An Individual
09/11/2020,Test and Trace Payments - Standard Scheme (COVID-19),Test and Trace Payments (COVID-19),500.00,An Individual
10/12/2020,Local Restrictions Support Grants � Mandatory (COVID-19),Local Restrictions Support Grants (COVID-19),"1,334.00",An Individual
24/11/2020,Test and Trace Payments - Local Discretionary Scheme (COVID-19),Test and Trace Payments (COVID-19),500.00,An Individual
13/11/2020,Test and Trace Payments - Standard Scheme (COVID-19),Test and Trace Payments (COVID-19),500.00,An Individual
21/12/2020,Local Restrictions Support Grants � Mandatory (COVID-19),Local Restrictions Support Grants (COVID-19),"1,334.00",An Individual
21/12/2020,Local Restrictions Support Grants � Mandatory (COVID-19),Local Restrictions Support Grants (COVID-19),"1,334.00",An Individual
11/11/2020,Test and Trace Payments - Standard Scheme (COVID-19),Test and Trace Payments (COVID-19),500.00,An Individual
03/12/2020,Test and Trace Payments - Standard Scheme (COVID-19),Test and Trace Payments (COVID-19),500.00,An Individual
13/11/2020,Test and Trace Payments - Local Discretionary Scheme (COVID-19),Test and Trace Payments (COVID-19),500.00,An Individual
01/12/2020,Test and Trace Payments - Standard Scheme (COVID-19),Test and Trace Payments (COVID-19),500.00,An Individual
28/10/2020,Test and Trace Payments - Local Discretionary Scheme (COVID-19),Test and Trace Payments (COVID-19),500.00,An Individual
28/10/2020,Test and Trace Payments - Local Discretionary Scheme (COVID-19),Test and Trace Payments (COVID-19),500.00,An Individual
04/11/2020,Test and Trace Payments - Local Discretionary Scheme (COVID-19),Test and Trace Payments (COVID-19),500.00,An Individual
28/10/2020,Test and Trace Payments - Local Discretionary Scheme (COVID-19),Test and Trace Payments (COVID-19),500.00,An Individual
11/11/2020,Test and Trace Payments - Standard Scheme (COVID-19),Test and Trace Payments (COVID-19),500.00,An Individual
28/10/2020,Test and Trace Payments - Local Discretionary Scheme (COVID-19),Test and Trace Payments (COVID-19),500.00,An Individual
22/10/2020,Test and Trace Payments - Standard Scheme (COVID-19),Test and Trace Payments (COVID-19),500.00,An Individual
22/10/2020,Test and Trace Payments - Standard Scheme (COVID-19),Test and Trace Payments (COVID-19),500.00,An Individual
16/10/2020,Test and Trace Payments - Local Discretionary Scheme (COVID-19),Test and Trace Payments (COVID-19),500.00,An Individual
10/12/2020,Test and Trace Payments - Standard Scheme (COVID-19),Test and Trace Payments (COVID-19),500.00,An Individual
26/11/2020,Test and Trace Payments - Local Discretionary Scheme (COVID-19),Test and Trace Payments (COVID-19),500.00,An Individual
03/12/2020,Test and Trace Payments - Standard Scheme (COVID-19),Test and Trace Payments (COVID-19),500.00,An Individual
04/11/2020,Test and Trace Payments - Standard Scheme (COVID-19),Test and Trace Payments (COVID-19),500.00,An Individual
28/10/2020,Test and Trace Payments - Standard Scheme (COVID-19),Test and Trace Payments (COVID-19),500.00,An Individual
10/12/2020,Test and Trace Payments - Standard Scheme (COVID-19),Test and Trace Payments (COVID-19),500.00,An Individual
22/10/2020,Test and Trace Payments - Standard Scheme (COVID-19),Test and Trace Payments (COVID-19),500.00,An Individual
24/11/2020,Test and Trace Payments - Standard Scheme (COVID-19),Test and Trace Payments (COVID-19),500.00,An Individual
02/12/2020,Local Restrictions Support Grants � Mandatory (COVID-19),Local Restrictions Support Grants (COVID-19),"1,334.00",An Individual
21/12/2020,Local Restrictions Support Grants � Mandatory (COVID-19),Local Restrictions Support Grants (COVID-19),"1,334.00",An Individual
09/11/2020,Test and Trace Payments - Standard Scheme (COVID-19),Test and Trace Payments (COVID-19),500.00,An Individual
19/11/2020,Test and Trace Payments - Standard Scheme (COVID-19),Test and Trace Payments (COVID-19),500.00,An Individual
15/12/2020,Test and Trace Payments - Standard Scheme (COVID-19),Test and Trace Payments (COVID-19),500.00,An Individual
10/12/2020,Test and Trace Payments - Standard Scheme (COVID-19),Test and Trace Payments (COVID-19),500.00,An Individual
25/11/2020,Local Restrictions Support Grants � Mandatory (COVID-19),Local Restrictions Support Grants (COVID-19),"1,334.00",An Individual
24/11/2020,Test and Trace Payments - Local Discretionary Scheme (COVID-19),Test and Trace Payments (COVID-19),500.00,An Individual
10/12/2020,Test and Trace Payments - Standard Scheme (COVID-19),Test and Trace Payments (COVID-19),500.00,An Individual
19/11/2020,Test and Trace Payments - Standard Scheme (COVID-19),Test and Trace Payments (COVID-19),500.00,An Individual
28/10/2020,Test and Trace Payments - Standard Scheme (COVID-19),Test and Trace Payments (COVID-19),500.00,An Individual
02/12/2020,Local Restrictions Support Grants � Mandatory (COVID-19),Local Restrictions Support Grants (COVID-19),"1,334.00",An Individual
18/12/2020,Local Restrictions Support Grants � Mandatory (COVID-19),Local Restrictions Support Grants (COVID-19),"1,334.00",An Individual
25/11/2020,Local Restrictions Support Grants � Mandatory (COVID-19),Local Restrictions Support Grants (COVID-19),"1,334.00",An Individual
09/11/2020,Test and Trace Payments - Local Discretionary Scheme (COVID-19),Test and Trace Payments (COVID-19),500.00,An Individual
15/12/2020,Test and Trace Payments - Standard Scheme (COVID-19),Test and Trace Payments (COVID-19),500.00,An Individual
22/10/2020,Test and Trace Payments - Local Discretionary Scheme (COVID-19),Test and Trace Payments (COVID-19),500.00,An Individual
04/11/2020,Test and Trace Payments - Standard Scheme (COVID-19),Test and Trace Payments (COVID-19),500.00,An Individual
11/11/2020,Test and Trace Payments - Standard Scheme (COVID-19),Test and Trace Payments (COVID-19),500.00,An Individual
02/12/2020,Local Restrictions Support Grants � Mandatory (COVID-19),Local Restrictions Support Grants (COVID-19),"1,334.00",An Individual
18/12/2020,Local Restrictions Support Grants � Mandatory (COVID-19),Local Restrictions Support Grants (COVID-19),"1,334.00",An Individual
30/11/2020,Local Restrictions Support Grants � Mandatory (COVID-19),Local Restrictions Support Grants (COVID-19),"1,334.00",An Individual
11/11/2020,Test and Trace Payments - Standard Scheme (COVID-19),Test and Trace Payments (COVID-19),500.00,An Individual
24/11/2020,Test and Trace Payments - Standard Scheme (COVID-19),Test and Trace Payments (COVID-19),500.00,An Individual
24/11/2020,Test and Trace Payments - Standard Scheme (COVID-19),Test and Trace Payments (COVID-19),500.00,An Individual
04/11/2020,Test and Trace Payments - Standard Scheme (COVID-19),Test and Trace Payments (COVID-19),500.00,An Individual
03/12/2020,Test and Trace Payments - Standard Scheme (COVID-19),Test and Trace Payments (COVID-19),500.00,An Individual
26/11/2020,Test and Trace Payments - Local Discretionary Scheme (COVID-19),Test and Trace Payments (COVID-19),500.00,An Individual
27/11/2020,Local Restrictions Support Grants � Mandatory (COVID-19),Local Restrictions Support Grants (COVID-19),"1,334.00",An Individual
18/12/2020,Local Restrictions Support Grants � Mandatory (COVID-19),Local Restrictions Support Grants (COVID-19),"1,334.00",An Individual
23/12/2020,Local Restrictions Support Grants � Mandatory (COVID-19),Local Restrictions Support Grants (COVID-19),"1,334.00",An Individual
08/12/2020,Test and Trace Payments - Standard Scheme (COVID-19),Test and Trace Payments (COVID-19),500.00,An Individual
20/11/2020,Local Restrictions Support Grants � Mandatory (COVID-19),Local Restrictions Support Grants (COVID-19),"1,334.00",An Individual
24/11/2020,Test and Trace Payments - Standard Scheme (COVID-19),Test and Trace Payments (COVID-19),500.00,An Individual
24/11/2020,Test and Trace Payments - Standard Scheme (COVID-19),Test and Trace Payments (COVID-19),500.00,An Individual
22/12/2020,Test and Trace Payments - Standard Scheme (COVID-19),Test and Trace Payments (COVID-19),500.00,An Individual
03/12/2020,Test and Trace Payments - Standard Scheme (COVID-19),Test and Trace Payments (COVID-19),500.00,An Individual
26/11/2020,Test and Trace Payments - Standard Scheme (COVID-19),Test and Trace Payments (COVID-19),500.00,An Individual
08/12/2020,Test and Trace Payments - Standard Scheme (COVID-19),Test and Trace Payments (COVID-19),500.00,An Individual
04/11/2020,Test and Trace Payments - Standard Scheme (COVID-19),Test and Trace Payments (COVID-19),500.00,An Individual
17/12/2020,Flood Compensation Payments,Flood Compensation Payments,"5,000.00",An Individual
08/12/2020,Test and Trace Payments - Standard Scheme (COVID-19),Test and Trace Payments (COVID-19),500.00,An Individual
17/11/2020,Test and Trace Payments - Standard Scheme (COVID-19),Test and Trace Payments (COVID-19),500.00,An Individual
09/11/2020,Test and Trace Payments - Local Discretionary Scheme (COVID-19),Test and Trace Payments (COVID-19),500.00,An Individual
24/11/2020,Test and Trace Payments - Standard Scheme (COVID-19),Test and Trace Payments (COVID-19),500.00,An Individual
22/10/2020,Test and Trace Payments - Local Discretionary Scheme (COVID-19),Test and Trace Payments (COVID-19),500.00,An Individual
03/12/2020,Test and Trace Payments - Standard Scheme (COVID-19),Test and Trace Payments (COVID-19),500.00,An Individual
19/11/2020,Test and Trace Payments - Local Discretionary Scheme (COVID-19),Test and Trace Payments (COVID-19),500.00,An Individual
09/11/2020,Test and Trace Payments - Standard Scheme (COVID-19),Test and Trace Payments (COVID-19),500.00,An Individual
08/12/2020,Test and Trace Payments - Standard Scheme (COVID-19),Test and Trace Payments (COVID-19),500.00,An Individual
17/11/2020,Test and Trace Payments - Standard Scheme (COVID-19),Test and Trace Payments (COVID-19),500.00,An Individual
27/11/2020,Local Restrictions Support Grants � Mandatory (COVID-19),Local Restrictions Support Grants (COVID-19),"1,334.00",An Individual
18/12/2020,Local Restrictions Support Grants � Mandatory (COVID-19),Local Restrictions Support Grants (COVID-19),"1,334.00",An Individual
19/11/2020,Test and Trace Payments - Standard Scheme (COVID-19),Test and Trace Payments (COVID-19),500.00,An Individual
13/11/2020,Test and Trace Payments - Standard Scheme (COVID-19),Test and Trace Payments (COVID-19),500.00,An Individual
09/11/2020,Test and Trace Payments - Standard Scheme (COVID-19),Test and Trace Payments (COVID-19),500.00,An Individual
15/12/2020,Test and Trace Payments - Standard Scheme (COVID-19),Test and Trace Payments (COVID-19),500.00,An Individual
19/11/2020,Test and Trace Payments - Standard Scheme (COVID-19),Test and Trace Payments (COVID-19),500.00,An Individual
28/10/2020,Test and Trace Payments - Local Discretionary Scheme (COVID-19),Test and Trace Payments (COVID-19),500.00,An Individual
09/11/2020,Test and Trace Payments - Local Discretionary Scheme (COVID-19),Test and Trace Payments (COVID-19),500.00,An Individual
24/11/2020,Test and Trace Payments - Standard Scheme (COVID-19),Test and Trace Payments (COVID-19),500.00,An Individual
10/12/2020,Local Restrictions Support Grants � Mandatory (COVID-19),Local Restrictions Support Grants (COVID-19),"1,334.00",An Individual
30/11/2020,Local Restrictions Support Grants � Mandatory (COVID-19),Local Restrictions Support Grants (COVID-19),"1,334.00",An Individual
13/11/2020,Test and Trace Payments - Local Discretionary Scheme (COVID-19),Test and Trace Payments (COVID-19),500.00,An Individual
03/12/2020,Test and Trace Payments - Standard Scheme (COVID-19),Test and Trace Payments (COVID-19),500.00,An Individual
22/10/2020,Test and Trace Payments - Local Discretionary Scheme (COVID-19),Test and Trace Payments (COVID-19),500.00,An Individual
18/12/2020,Local Restrictions Support Grants � Mandatory (COVID-19),Local Restrictions Support Grants (COVID-19),"1,334.00",An Individual
10/12/2020,Test and Trace Payments - Standard Scheme (COVID-19),Test and Trace Payments (COVID-19),500.00,An Individual
19/11/2020,Test and Trace Payments - Standard Scheme (COVID-19),Test and Trace Payments (COVID-19),500.00,An Individual
27/11/2020,Flood Compensation Payments,Flood Compensation Payments,"4,650.00",An Individual
03/11/2020,Flood Compensation Payments,Flood Compensation Payments,"4,062.00",An Individual
30/11/2020,Local Restrictions Support Grants � Mandatory (COVID-19),Local Restrictions Support Grants (COVID-19),"1,334.00",An Individual
13/11/2020,Test and Trace Payments - Standard Scheme (COVID-19),Test and Trace Payments (COVID-19),500.00,An Individual
04/11/2020,Test and Trace Payments - Local Discretionary Scheme (COVID-19),Test and Trace Payments (COVID-19),500.00,An Individual
24/11/2020,Test and Trace Payments - Local Discretionary Scheme (COVID-19),Test and Trace Payments (COVID-19),500.00,An Individual
26/11/2020,Test and Trace Payments - Local Discretionary Scheme (COVID-19),Test and Trace Payments (COVID-19),500.00,An Individual
19/11/2020,Test and Trace Payments - Standard Scheme (COVID-19),Test and Trace Payments (COVID-19),500.00,An Individual
04/11/2020,Test and Trace Payments - Local Discretionary Scheme (COVID-19),Test and Trace Payments (COVID-19),500.00,An Individual
11/11/2020,Test and Trace Payments - Standard Scheme (COVID-19),Test and Trace Payments (COVID-19),500.00,An Individual
11/11/2020,Test and Trace Payments - Standard Scheme (COVID-19),Test and Trace Payments (COVID-19),500.00,An Individual
26/11/2020,Test and Trace Payments - Standard Scheme (COVID-19),Test and Trace Payments (COVID-19),500.00,An Individual
22/12/2020,Test and Trace Payments - Standard Scheme (COVID-19),Test and Trace Payments (COVID-19),500.00,An Individual
17/12/2020,Test and Trace Payments - Standard Scheme (COVID-19),Test and Trace Payments (COVID-19),500.00,An Individual
19/11/2020,Flood Compensation Payments,Flood Compensation Payments,"4,940.00",An Individual
28/10/2020,Test and Trace Payments - Local Discretionary Scheme (COVID-19),Test and Trace Payments (COVID-19),500.00,An Individual
01/12/2020,Test and Trace Payments - Standard Scheme (COVID-19),Test and Trace Payments (COVID-19),500.00,An Individual
19/10/2020,Flood Compensation Payments,Flood Compensation Payments,"3,065.00",An Individual
04/11/2020,Test and Trace Payments - Local Discretionary Scheme (COVID-19),Test and Trace Payments (COVID-19),500.00,An Individual
23/11/2020,Local Restrictions Support Grants � Mandatory (COVID-19),Local Restrictions Support Grants (COVID-19),"1,334.00",An Individual
19/11/2020,Test and Trace Payments - Standard Scheme (COVID-19),Test and Trace Payments (COVID-19),500.00,An Individual
04/12/2020,Local Restrictions Support Grants � Mandatory (COVID-19),Local Restrictions Support Grants (COVID-19),"1,334.00",An Individual
04/12/2020,Local Restrictions Support Grants � Mandatory (COVID-19),Local Restrictions Support Grants (COVID-19),"1,334.00",An Individual
09/11/2020,Test and Trace Payments - Standard Scheme (COVID-19),Test and Trace Payments (COVID-19),500.00,An Individual
22/12/2020,Test and Trace Payments - Standard Scheme (COVID-19),Test and Trace Payments (COVID-19),500.00,An Individual
28/10/2020,Test and Trace Payments - Standard Scheme (COVID-19),Test and Trace Payments (COVID-19),500.00,An Individual
04/11/2020,Test and Trace Payments - Standard Scheme (COVID-19),Test and Trace Payments (COVID-19),500.00,An Individual
08/12/2020,Test and Trace Payments - Standard Scheme (COVID-19),Test and Trace Payments (COVID-19),500.00,An Individual
02/12/2020,Local Restrictions Support Grants � Mandatory (COVID-19),Local Restrictions Support Grants (COVID-19),"1,334.00",An Individual
10/12/2020,Local Restrictions Support Grants � Mandatory (COVID-19),Local Restrictions Support Grants (COVID-19),"1,334.00",An Individual
01/12/2020,Test and Trace Payments - Standard Scheme (COVID-19),Test and Trace Payments (COVID-19),500.00,An Individual
28/10/2020,Test and Trace Payments - Standard Scheme (COVID-19),Test and Trace Payments (COVID-19),500.00,An Individual
26/11/2020,Test and Trace Payments - Standard Scheme (COVID-19),Test and Trace Payments (COVID-19),500.00,An Individual
11/11/2020,Test and Trace Payments - Local Discretionary Scheme (COVID-19),Test and Trace Payments (COVID-19),500.00,An Individual
11/11/2020,Test and Trace Payments - Standard Scheme (COVID-19),Test and Trace Payments (COVID-19),500.00,An Individual
19/11/2020,Test and Trace Payments - Standard Scheme (COVID-19),Test and Trace Payments (COVID-19),500.00,An Individual
22/12/2020,Test and Trace Payments - Standard Scheme (COVID-19),Test and Trace Payments (COVID-19),500.00,An Individual
09/11/2020,Test and Trace Payments - Local Discretionary Scheme (COVID-19),Test and Trace Payments (COVID-19),500.00,An Individual
08/12/2020,Test and Trace Payments - Standard Scheme (COVID-19),Test and Trace Payments (COVID-19),500.00,An Individual
20/11/2020,Local Restrictions Support Grants � Mandatory (COVID-19),Local Restrictions Support Grants (COVID-19),"1,334.00",An Individual
17/11/2020,Test and Trace Payments - Standard Scheme (COVID-19),Test and Trace Payments (COVID-19),500.00,An Individual
16/10/2020,Test and Trace Payments - Standard Scheme (COVID-19),Test and Trace Payments (COVID-19),500.00,An Individual
27/11/2020,Flood Compensation Payments,Flood Compensation Payments,"4,920.00",An Individual
09/11/2020,Test and Trace Payments - Local Discretionary Scheme (COVID-19),Test and Trace Payments (COVID-19),500.00,An Individual
28/10/2020,Test and Trace Payments - Standard Scheme (COVID-19),Test and Trace Payments (COVID-19),500.00,An Individual
17/11/2020,Test and Trace Payments - Standard Scheme (COVID-19),Test and Trace Payments (COVID-19),500.00,An Individual
09/11/2020,Test and Trace Payments - Standard Scheme (COVID-19),Test and Trace Payments (COVID-19),500.00,An Individual
08/12/2020,Test and Trace Payments - Standard Scheme (COVID-19),Test and Trace Payments (COVID-19),500.00,An Individual
04/11/2020,Test and Trace Payments - Local Discretionary Scheme (COVID-19),Test and Trace Payments (COVID-19),500.00,An Individual
21/12/2020,Local Restrictions Support Grants � Mandatory (COVID-19),Local Restrictions Support Grants (COVID-19),"1,334.00",An Individual
30/11/2020,Local Restrictions Support Grants � Mandatory (COVID-19),Local Restrictions Support Grants (COVID-19),"1,334.00",An Individual
04/12/2020,Local Restrictions Support Grants � Mandatory (COVID-19),Local Restrictions Support Grants (COVID-19),"3,000.00",An Individual
04/12/2020,Local Restrictions Support Grants � Mandatory (COVID-19),Local Restrictions Support Grants (COVID-19),"3,000.00",An Individual
16/12/2020,Local Restrictions Support Grants � Mandatory (COVID-19),Local Restrictions Support Grants (COVID-19),"1,334.00",An Individual
12/11/2020,Fees and Charges,Building Consultancy Chargeable Activities,590.00,An Individual
16/12/2020,Local Restrictions Support Grants � Mandatory (COVID-19),Local Restrictions Support Grants (COVID-19),"1,334.00",An Individual
02/12/2020,Local Restrictions Support Grants � Mandatory (COVID-19),Local Restrictions Support Grants (COVID-19),"1,334.00",An Individual
22/12/2020,Test and Trace Payments - Standard Scheme (COVID-19),Test and Trace Payments (COVID-19),500.00,An Individual
16/10/2020,Market Rental Deposits,Burton Retail Market,600.00,An Individual
01/12/2020,Test and Trace Payments - Standard Scheme (COVID-19),Test and Trace Payments (COVID-19),500.00,An Individual
21/12/2020,Local Restrictions Support Grants � Mandatory (COVID-19),Local Restrictions Support Grants (COVID-19),"1,334.00",An Individual
26/11/2020,Test and Trace Payments - Standard Scheme (COVID-19),Test and Trace Payments (COVID-19),500.00,An Individual
10/12/2020,Local Restrictions Support Grants � Mandatory (COVID-19),Local Restrictions Support Grants (COVID-19),"1,334.00",An Individual
24/11/2020,Test and Trace Payments - Standard Scheme (COVID-19),Test and Trace Payments (COVID-19),500.00,An Individual
13/11/2020,Test and Trace Payments - Standard Scheme (COVID-19),Test and Trace Payments (COVID-19),500.00,An Individual
22/10/2020,Test and Trace Payments - Local Discretionary Scheme (COVID-19),Test and Trace Payments (COVID-19),500.00,An Individual
28/10/2020,Test and Trace Payments - Local Discretionary Scheme (COVID-19),Test and Trace Payments (COVID-19),500.00,An Individual
08/12/2020,Test and Trace Payments - Standard Scheme (COVID-19),Test and Trace Payments (COVID-19),500.00,An Individual
04/11/2020,Flood Compensation Payments,Flood Compensation Payments,500.00,An Individual
17/12/2020,Flood Compensation Payments,Flood Compensation Payments,"1,739.00",An Individual
03/12/2020,Test and Trace Payments - Standard Scheme (COVID-19),Test and Trace Payments (COVID-19),500.00,An Individual
26/11/2020,Test and Trace Payments - Standard Scheme (COVID-19),Test and Trace Payments (COVID-19),500.00,An Individual
17/11/2020,Test and Trace Payments - Standard Scheme (COVID-19),Test and Trace Payments (COVID-19),500.00,An Individual
28/10/2020,Test and Trace Payments - Standard Scheme (COVID-19),Test and Trace Payments (COVID-19),500.00,An Individual
28/10/2020,Test and Trace Payments - Local Discretionary Scheme (COVID-19),Test and Trace Payments (COVID-19),500.00,An Individual
26/11/2020,Test and Trace Payments - Standard Scheme (COVID-19),Test and Trace Payments (COVID-19),500.00,An Individual
15/12/2020,Test and Trace Payments - Standard Scheme (COVID-19),Test and Trace Payments (COVID-19),500.00,An Individual
18/12/2020,Local Restrictions Support Grants � Mandatory (COVID-19),Local Restrictions Support Grants (COVID-19),"1,334.00",An Individual
15/12/2020,Test and Trace Payments - Standard Scheme (COVID-19),Test and Trace Payments (COVID-19),500.00,An Individual
04/11/2020,Test and Trace Payments - Standard Scheme (COVID-19),Test and Trace Payments (COVID-19),500.00,An Individual
08/12/2020,Test and Trace Payments - Standard Scheme (COVID-19),Test and Trace Payments (COVID-19),500.00,An Individual
08/12/2020,Test and Trace Payments - Standard Scheme (COVID-19),Test and Trace Payments (COVID-19),500.00,An Individual
01/12/2020,Test and Trace Payments - Standard Scheme (COVID-19),Test and Trace Payments (COVID-19),500.00,An Individual
24/11/2020,Test and Trace Payments - Standard Scheme (COVID-19),Test and Trace Payments (COVID-19),500.00,An Individual
22/12/2020,Test and Trace Payments - Standard Scheme (COVID-19),Test and Trace Payments (COVID-19),500.00,An Individual
01/12/2020,Test and Trace Payments - Standard Scheme (COVID-19),Test and Trace Payments (COVID-19),500.00,An Individual
22/12/2020,Test and Trace Payments - Standard Scheme (COVID-19),Test and Trace Payments (COVID-19),500.00,An Individual
02/12/2020,Local Restrictions Support Grants � Mandatory (COVID-19),Local Restrictions Support Grants (COVID-19),"1,334.00",An Individual
28/10/2020,Test and Trace Payments - Standard Scheme (COVID-19),Test and Trace Payments (COVID-19),500.00,An Individual
19/11/2020,Test and Trace Payments - Local Discretionary Scheme (COVID-19),Test and Trace Payments (COVID-19),500.00,An Individual
18/12/2020,Local Restrictions Support Grants � Mandatory (COVID-19),Local Restrictions Support Grants (COVID-19),"1,334.00",An Individual
13/11/2020,Test and Trace Payments - Standard Scheme (COVID-19),Test and Trace Payments (COVID-19),500.00,An Individual
09/11/2020,Test and Trace Payments - Standard Scheme (COVID-19),Test and Trace Payments (COVID-19),500.00,An Individual
10/12/2020,Test and Trace Payments - Standard Scheme (COVID-19),Test and Trace Payments (COVID-19),500.00,An Individual
18/12/2020,Local Restrictions Support Grants � Mandatory (COVID-19),Local Restrictions Support Grants (COVID-19),"1,334.00",An Individual
17/11/2020,Test and Trace Payments - Local Discretionary Scheme (COVID-19),Test and Trace Payments (COVID-19),500.00,An Individual
26/11/2020,Test and Trace Payments - Standard Scheme (COVID-19),Test and Trace Payments (COVID-19),500.00,An Individual
21/12/2020,Local Restrictions Support Grants � Mandatory (COVID-19),Local Restrictions Support Grants (COVID-19),"1,334.00",An Individual
11/11/2020,Test and Trace Payments - Local Discretionary Scheme (COVID-19),Test and Trace Payments (COVID-19),500.00,An Individual
27/11/2020,Local Restrictions Support Grants � Mandatory (COVID-19),Local Restrictions Support Grants (COVID-19),"1,334.00",An Individual
04/12/2020,Local Restrictions Support Grants � Mandatory (COVID-19),Local Restrictions Support Grants (COVID-19),"1,334.00",An Individual
04/12/2020,Local Restrictions Support Grants � Mandatory (COVID-19),Local Restrictions Support Grants (COVID-19),"1,334.00",An Individual
04/11/2020,Test and Trace Payments - Standard Scheme (COVID-19),Test and Trace Payments (COVID-19),500.00,An Individual
01/12/2020,Test and Trace Payments - Standard Scheme (COVID-19),Test and Trace Payments (COVID-19),500.00,An Individual
11/11/2020,Test and Trace Payments - Local Discretionary Scheme (COVID-19),Test and Trace Payments (COVID-19),500.00,An Individual
17/12/2020,Test and Trace Payments - Standard Scheme (COVID-19),Test and Trace Payments (COVID-19),500.00,An Individual
26/11/2020,Test and Trace Payments - Standard Scheme (COVID-19),Test and Trace Payments (COVID-19),500.00,An Individual
09/11/2020,Test and Trace Payments - Standard Scheme (COVID-19),Test and Trace Payments (COVID-19),500.00,An Individual
10/12/2020,Test and Trace Payments - Standard Scheme (COVID-19),Test and Trace Payments (COVID-19),500.00,An Individual
10/12/2020,Local Restrictions Support Grants � Mandatory (COVID-19),Local Restrictions Support Grants (COVID-19),"1,334.00",An Individual
15/12/2020,Test and Trace Payments - Standard Scheme (COVID-19),Test and Trace Payments (COVID-19),500.00,An Individual
13/11/2020,Test and Trace Payments - Local Discretionary Scheme (COVID-19),Test and Trace Payments (COVID-19),500.00,An Individual
01/12/2020,Test and Trace Payments - Standard Scheme (COVID-19),Test and Trace Payments (COVID-19),500.00,An Individual
22/12/2020,Test and Trace Payments - Standard Scheme (COVID-19),Test and Trace Payments (COVID-19),500.00,An Individual
02/12/2020,Local Restrictions Support Grants � Mandatory (COVID-19),Local Restrictions Support Grants (COVID-19),"1,334.00",An Individual
02/12/2020,Local Restrictions Support Grants � Mandatory (COVID-19),Local Restrictions Support Grants (COVID-19),"1,334.00",An Individual
02/12/2020,Local Restrictions Support Grants � Mandatory (COVID-19),Local Restrictions Support Grants (COVID-19),"1,334.00",An Individual
26/11/2020,Test and Trace Payments - Local Discretionary Scheme (COVID-19),Test and Trace Payments (COVID-19),500.00,An Individual
04/11/2020,Test and Trace Payments - Standard Scheme (COVID-19),Test and Trace Payments (COVID-19),500.00,An Individual
09/11/2020,Test and Trace Payments - Local Discretionary Scheme (COVID-19),Test and Trace Payments (COVID-19),500.00,An Individual
18/12/2020,Local Restrictions Support Grants � Mandatory (COVID-19),Local Restrictions Support Grants (COVID-19),"1,334.00",An Individual
22/12/2020,Test and Trace Payments - Standard Scheme (COVID-19),Test and Trace Payments (COVID-19),500.00,An Individual
18/12/2020,Local Restrictions Support Grants � Mandatory (COVID-19),Local Restrictions Support Grants (COVID-19),"1,334.00",An Individual
02/12/2020,Local Restrictions Support Grants � Mandatory (COVID-19),Local Restrictions Support Grants (COVID-19),"1,334.00",An Individual
24/11/2020,Test and Trace Payments - Standard Scheme (COVID-19),Test and Trace Payments (COVID-19),500.00,An Individual
28/10/2020,Test and Trace Payments - Local Discretionary Scheme (COVID-19),Test and Trace Payments (COVID-19),500.00,An Individual
20/11/2020,Local Restrictions Support Grants � Mandatory (COVID-19),Local Restrictions Support Grants (COVID-19),"1,334.00",An Individual
11/11/2020,Test and Trace Payments - Local Discretionary Scheme (COVID-19),Test and Trace Payments (COVID-19),500.00,An Individual
28/10/2020,Test and Trace Payments - Local Discretionary Scheme (COVID-19),Test and Trace Payments (COVID-19),500.00,An Individual
17/12/2020,Test and Trace Payments - Standard Scheme (COVID-19),Test and Trace Payments (COVID-19),500.00,An Individual
23/12/2020,Local Restrictions Support Grants � Mandatory (COVID-19),Local Restrictions Support Grants (COVID-19),"1,334.00",An Individual
13/11/2020,Local Restrictions Support Grants � Mandatory (COVID-19),Local Restrictions Support Grants (COVID-19),"1,334.00",An Individual
24/11/2020,Test and Trace Payments - Local Discretionary Scheme (COVID-19),Test and Trace Payments (COVID-19),500.00,An Individual
21/12/2020,Local Restrictions Support Grants � Mandatory (COVID-19),Local Restrictions Support Grants (COVID-19),"1,334.00",An Individual
23/10/2020,Flood Compensation Payments,Flood Compensation Payments,"5,000.00",An Individual
17/12/2020,Test and Trace Payments - Standard Scheme (COVID-19),Test and Trace Payments (COVID-19),500.00,An Individual
15/12/2020,Test and Trace Payments - Standard Scheme (COVID-19),Test and Trace Payments (COVID-19),500.00,An Individual
17/11/2020,Test and Trace Payments - Local Discretionary Scheme (COVID-19),Test and Trace Payments (COVID-19),500.00,An Individual
10/12/2020,Test and Trace Payments - Standard Scheme (COVID-19),Test and Trace Payments (COVID-19),500.00,An Individual
30/11/2020,Local Restrictions Support Grants � Mandatory (COVID-19),Local Restrictions Support Grants (COVID-19),"1,334.00",An Individual
18/12/2020,Local Restrictions Support Grants � Mandatory (COVID-19),Local Restrictions Support Grants (COVID-19),"1,334.00",An Individual
22/12/2020,Test and Trace Payments - Standard Scheme (COVID-19),Test and Trace Payments (COVID-19),500.00,An Individual
08/12/2020,Test and Trace Payments - Standard Scheme (COVID-19),Test and Trace Payments (COVID-19),500.00,An Individual
22/12/2020,Test and Trace Payments - Standard Scheme (COVID-19),Test and Trace Payments (COVID-19),500.00,An Individual
03/12/2020,Test and Trace Payments - Standard Scheme (COVID-19),Test and Trace Payments (COVID-19),500.00,An Individual
18/12/2020,Local Restrictions Support Grants � Mandatory (COVID-19),Local Restrictions Support Grants (COVID-19),"1,334.00",An Individual
18/12/2020,Local Restrictions Support Grants � Mandatory (COVID-19),Local Restrictions Support Grants (COVID-19),"1,334.00",An Individual
10/12/2020,Local Restrictions Support Grants � Mandatory (COVID-19),Local Restrictions Support Grants (COVID-19),"1,334.00",An Individual
16/12/2020,Local Restrictions Support Grants � Mandatory (COVID-19),Local Restrictions Support Grants (COVID-19),"3,000.00",An Individual
30/11/2020,Local Restrictions Support Grants � Mandatory (COVID-19),Local Restrictions Support Grants (COVID-19),"1,334.00",An Individual
03/12/2020,Test and Trace Payments - Standard Scheme (COVID-19),Test and Trace Payments (COVID-19),500.00,An Individual
01/12/2020,Test and Trace Payments - Standard Scheme (COVID-19),Test and Trace Payments (COVID-19),500.00,An Individual
04/12/2020,Local Restrictions Support Grants � Mandatory (COVID-19),Local Restrictions Support Grants (COVID-19),"1,334.00",An Individual
04/12/2020,Local Restrictions Support Grants � Mandatory (COVID-19),Local Restrictions Support Grants (COVID-19),"1,334.00",An Individual
22/10/2020,Test and Trace Payments - Local Discretionary Scheme (COVID-19),Test and Trace Payments (COVID-19),500.00,An Individual
04/11/2020,Test and Trace Payments - Local Discretionary Scheme (COVID-19),Test and Trace Payments (COVID-19),500.00,An Individual
25/11/2020,Local Restrictions Support Grants � Mandatory (COVID-19),Local Restrictions Support Grants (COVID-19),"1,334.00",An Individual
08/12/2020,Test and Trace Payments - Standard Scheme (COVID-19),Test and Trace Payments (COVID-19),500.00,An Individual
24/11/2020,Test and Trace Payments - Standard Scheme (COVID-19),Test and Trace Payments (COVID-19),500.00,An Individual
08/12/2020,Test and Trace Payments - Standard Scheme (COVID-19),Test and Trace Payments (COVID-19),500.00,An Individual
01/12/2020,Test and Trace Payments - Standard Scheme (COVID-19),Test and Trace Payments (COVID-19),500.00,An Individual
15/12/2020,Test and Trace Payments - Standard Scheme (COVID-19),Test and Trace Payments (COVID-19),500.00,An Individual
04/11/2020,Test and Trace Payments - Local Discretionary Scheme (COVID-19),Test and Trace Payments (COVID-19),500.00,An Individual
19/11/2020,Test and Trace Payments - Standard Scheme (COVID-19),Test and Trace Payments (COVID-19),500.00,An Individual
27/11/2020,Local Restrictions Support Grants � Mandatory (COVID-19),Local Restrictions Support Grants (COVID-19),"2,000.00",An Individual
08/12/2020,Test and Trace Payments - Standard Scheme (COVID-19),Test and Trace Payments (COVID-19),500.00,An Individual
18/12/2020,Local Restrictions Support Grants � Mandatory (COVID-19),Local Restrictions Support Grants (COVID-19),"1,334.00",An Individual
08/12/2020,Test and Trace Payments - Standard Scheme (COVID-19),Test and Trace Payments (COVID-19),500.00,An Individual
03/12/2020,Test and Trace Payments - Standard Scheme (COVID-19),Test and Trace Payments (COVID-19),500.00,An Individual
25/11/2020,Local Restrictions Support Grants � Mandatory (COVID-19),Local Restrictions Support Grants (COVID-19),"1,334.00",An Individual
16/12/2020,Local Restrictions Support Grants � Mandatory (COVID-19),Local Restrictions Support Grants (COVID-19),"1,334.00",An Individual
27/11/2020,Local Restrictions Support Grants � Mandatory (COVID-19),Local Restrictions Support Grants (COVID-19),"2,000.00",An Individual
24/11/2020,Miscellaneous Sales,Brewhouse Arts Centre,607.50,An Individual
27/11/2020,Local Restrictions Support Grants � Mandatory (COVID-19),Local Restrictions Support Grants (COVID-19),"1,334.00",An Individual
02/12/2020,Flood Compensation Payments,Flood Compensation Payments,"4,985.00",An Individual
16/11/2020,Flood Compensation Payments,Flood Compensation Payments,"5,000.00",An Individual
21/12/2020,Local Restrictions Support Grants � Mandatory (COVID-19),Local Restrictions Support Grants (COVID-19),"1,334.00",An Individual
20/11/2020,Local Restrictions Support Grants � Mandatory (COVID-19),Local Restrictions Support Grants (COVID-19),"1,334.00",An Individual
25/11/2020,Local Restrictions Support Grants � Mandatory (COVID-19),Local Restrictions Support Grants (COVID-19),"1,334.00",An Individual
02/12/2020,Flood Compensation Payments,Flood Compensation Payments,"3,540.00",An Individual
21/12/2020,Local Restrictions Support Grants � Mandatory (COVID-19),Local Restrictions Support Grants (COVID-19),"1,334.00",An Individual
10/12/2020,Local Restrictions Support Grants � Mandatory (COVID-19),Local Restrictions Support Grants (COVID-19),"1,334.00",An Individual
03/11/2020,Flood Compensation Payments,Flood Compensation Payments,"2,345.00",An Individual
25/11/2020,Local Restrictions Support Grants � Mandatory (COVID-19),Local Restrictions Support Grants (COVID-19),"2,000.00",An Individual
18/12/2020,Local Restrictions Support Grants � Mandatory (COVID-19),Local Restrictions Support Grants (COVID-19),"1,334.00",An Individual
02/12/2020,Flood Compensation Payments,Flood Compensation Payments,"5,000.00",An Individual
02/12/2020,Local Restrictions Support Grants � Mandatory (COVID-19),Local Restrictions Support Grants (COVID-19),"1,334.00",An Individual
20/11/2020,Local Restrictions Support Grants � Mandatory (COVID-19),Local Restrictions Support Grants (COVID-19),"1,334.00",An Individual
10/12/2020,Local Restrictions Support Grants � Mandatory (COVID-19),Local Restrictions Support Grants (COVID-19),"1,334.00",An Individual
25/11/2020,Local Restrictions Support Grants � Mandatory (COVID-19),Local Restrictions Support Grants (COVID-19),"1,334.00",An Individual
21/12/2020,Local Restrictions Support Grants � Mandatory (COVID-19),Local Restrictions Support Grants (COVID-19),"1,334.00",An Individual
04/12/2020,Local Restrictions Support Grants � Mandatory (COVID-19),Local Restrictions Support Grants (COVID-19),"1,334.00",An Individual
04/12/2020,Local Restrictions Support Grants � Mandatory (COVID-19),Local Restrictions Support Grants (COVID-19),"1,334.00",An Individual
10/12/2020,Local Restrictions Support Grants � Mandatory (COVID-19),Local Restrictions Support Grants (COVID-19),"1,334.00",An Individual
13/10/2020,Town Hall Room Hire,Burton Town Hall Civic Building,"2,824.30",An Individual
27/11/2020,Local Restrictions Support Grants � Mandatory (COVID-19),Local Restrictions Support Grants (COVID-19),"1,334.00",An Individual
10/12/2020,Local Restrictions Support Grants � Mandatory (COVID-19),Local Restrictions Support Grants (COVID-19),"1,334.00",An Individual
21/12/2020,Local Restrictions Support Grants � Mandatory (COVID-19),Local Restrictions Support Grants (COVID-19),"1,334.00",An Individual
23/12/2020,Local Restrictions Support Grants � Mandatory (COVID-19),Local Restrictions Support Grants (COVID-19),"1,334.00",An Individual
23/12/2020,Local Restrictions Support Grants � Mandatory (COVID-19),Local Restrictions Support Grants (COVID-19),"1,334.00",An Individual
02/12/2020,Local Restrictions Support Grants � Mandatory (COVID-19),Local Restrictions Support Grants (COVID-19),"1,334.00",An Individual
23/11/2020,Local Restrictions Support Grants � Mandatory (COVID-19),Local Restrictions Support Grants (COVID-19),"1,334.00",An Individual
10/12/2020,Local Restrictions Support Grants � Mandatory (COVID-19),Local Restrictions Support Grants (COVID-19),"1,334.00",An Individual
16/12/2020,Local Restrictions Support Grants � Mandatory (COVID-19),Local Restrictions Support Grants (COVID-19),"1,334.00",An Individual
27/11/2020,Local Restrictions Support Grants � Mandatory (COVID-19),Local Restrictions Support Grants (COVID-19),"2,000.00",An Individual
18/12/2020,Local Restrictions Support Grants � Mandatory (COVID-19),Local Restrictions Support Grants (COVID-19),"1,334.00",An Individual T/A Barton Turn
21/12/2020,Local Restrictions Support Grants � Mandatory (COVID-19),Local Restrictions Support Grants (COVID-19),"1,334.00",An Individual t/a Blades
30/11/2020,Local Restrictions Support Grants � Mandatory (COVID-19),Local Restrictions Support Grants (COVID-19),"1,334.00",An Individual T/A Brownz
25/11/2020,Local Restrictions Support Grants � Mandatory (COVID-19),Local Restrictions Support Grants (COVID-19),"1,334.00",An Individual t/a Concept
25/11/2020,Local Restrictions Support Grants � Mandatory (COVID-19),Local Restrictions Support Grants (COVID-19),"2,000.00",An Individual t/a Coopers Tavern
02/12/2020,Local Restrictions Support Grants � Mandatory (COVID-19),Local Restrictions Support Grants (COVID-19),"1,334.00",An Individual T/A Hair by Rascals
30/11/2020,Local Restrictions Support Grants � Mandatory (COVID-19),Local Restrictions Support Grants (COVID-19),"1,334.00",An Individual T/A HK Creative Services Limited
10/12/2020,Local Restrictions Support Grants � Discretionary (COVID-19),Local Restrictions Support Grants (COVID-19),"1,334.00",An Individual T/A RBMA CONSULTANCY
21/12/2020,Local Restrictions Support Grants � Mandatory (COVID-19),Local Restrictions Support Grants (COVID-19),"1,334.00",An Individual T/A Running Form
20/11/2020,Local Restrictions Support Grants � Mandatory (COVID-19),Local Restrictions Support Grants (COVID-19),"1,334.00",An Individual t/a The Bagot Arms
20/11/2020,Local Restrictions Support Grants � Mandatory (COVID-19),Local Restrictions Support Grants (COVID-19),"1,334.00",An Individual t/a The Derby Inn
21/12/2020,Local Restrictions Support Grants � Mandatory (COVID-19),Local Restrictions Support Grants (COVID-19),"2,000.00",An Individual T/A The Furniture King
18/12/2020,Local Restrictions Support Grants � Mandatory (COVID-19),Local Restrictions Support Grants (COVID-19),"1,334.00",An Individual T/A The Gate Inn
25/11/2020,Local Restrictions Support Grants � Mandatory (COVID-19),Local Restrictions Support Grants (COVID-19),"1,334.00",An Individual t/a The Last Heretic
02/12/2020,Local Restrictions Support Grants � Mandatory (COVID-19),Local Restrictions Support Grants (COVID-19),"1,334.00",An Individual T/A The Town Barber
10/12/2020,Local Restrictions Support Grants � Mandatory (COVID-19),Local Restrictions Support Grants (COVID-19),"1,334.00",An Individual t/a Time
20/11/2020,Local Restrictions Support Grants � Mandatory (COVID-19),Local Restrictions Support Grants (COVID-19),"2,000.00",An Individual T/A TN Nails & Beauty
02/12/2020,Local Restrictions Support Grants � Mandatory (COVID-19),Local Restrictions Support Grants (COVID-19),"1,334.00",An Individual T/A Whynot Gallery
16/12/2020,Local Restrictions Support Grants � Mandatory (COVID-19),Local Restrictions Support Grants (COVID-19),"1,334.00",An Individual T/A Willisford
30/11/2020,Local Restrictions Support Grants � Mandatory (COVID-19),Local Restrictions Support Grants (COVID-19),"1,334.00",An Individual t/a WN Davies
20/11/2020,Local Restrictions Support Grants � Mandatory (COVID-19),Local Restrictions Support Grants (COVID-19),"1,334.00",An Individual t/z Unique
16/12/2020,Local Restrictions Support Grants � Mandatory (COVID-19),Local Restrictions Support Grants (COVID-19),"2,000.00",Annie Maison Limited
30/11/2020,Local Restrictions Support Grants � Mandatory (COVID-19),Local Restrictions Support Grants (COVID-19),"1,334.00",Anslow New Village Hall Committee
24/09/2020,Wasps Expenditure,Councillors Community Fund,"1,000.00",Anslow New Village Hall Committee
17/07/2020,Software Licenses & Contracts,Burton Retail Market,"1,483.00",APSE
14/10/2020,Direct Purchases,DSO Stores Account,"1,524.20",Arco Limited
29/09/2020,Accommodation Costs - B & B/Hotels,Housing Options - Accommodation,"1,170.00",Ascot Hotel
30/08/2020,Accommodation Costs - B & B/Hotels,Housing Options - Accommodation,"1,240.00",Ascot Hotel
30/07/2020,Accommodation Costs - B & B/Hotels,Housing Options - Accommodation,"1,200.00",Ascot Hotel
23/09/2020,Accommodation Costs - B & B/Hotels,Housing Options - Accommodation,960.00,Ascot Hotel
17/10/2020,Accommodation Costs - B & B/Hotels,Housing Options - Accommodation,630.00,Ascot Hotel
10/10/2020,Accommodation Costs - B & B/Hotels,Housing Options - Accommodation,900.00,Ascot Hotel
27/10/2020,Accommodation Costs - B & B/Hotels,Housing Options - Accommodation,510.00,Ascot Hotel
28/10/2020,Grounds Maintenance,Open Spaces,555.00,Autosigns Burton Limited
23/12/2020,Local Restrictions Support Grants � Mandatory (COVID-19),Local Restrictions Support Grants (COVID-19),"1,334.00",Autumn Pubs Limited
28/10/2020,Play Equipment,Open Spaces,"3,853.50",B and S Chains
23/11/2020,Temporary Staff Costs,Project WIRED,"9,786.00",Baby People Limited
23/11/2020,Local Restrictions Support Grants � Mandatory (COVID-19),Local Restrictions Support Grants (COVID-19),"1,334.00",Bar XV Ltd
29/09/2020,Contract Payments,Street Cleaning,"5,500.00",Bartec Auto ID Ltd
23/12/2020,Local Restrictions Support Grants � Mandatory (COVID-19),Local Restrictions Support Grants (COVID-19),"3,000.00",Barton Turns Developments Ltd
10/12/2020,Local Restrictions Support Grants � Mandatory (COVID-19),Local Restrictions Support Grants (COVID-19),"1,334.00",BARTON UNDER NEEDWOOD BOWLING & SOCIAL CLUB
20/10/2020,Wasps Expenditure,Councillors Community Fund,"1,000.00",Barton under Needwood Hockey Club
16/12/2020,Local Restrictions Support Grants � Mandatory (COVID-19),Local Restrictions Support Grants (COVID-19),"1,334.00",Be Catered 4 Ltd
27/11/2020,Local Restrictions Support Grants � Mandatory (COVID-19),Local Restrictions Support Grants (COVID-19),"1,334.00",Bear Coffee Company Ltd
30/11/2020,Local Restrictions Support Grants � Mandatory (COVID-19),Local Restrictions Support Grants (COVID-19),"1,334.00",Beauty by Laura Jayne
20/11/2020,Local Restrictions Support Grants � Mandatory (COVID-19),Local Restrictions Support Grants (COVID-19),"1,334.00",Beckis Hairdressing
10/12/2020,Local Restrictions Support Grants � Mandatory (COVID-19),Local Restrictions Support Grants (COVID-19),"1,334.00",Belmont Golf Course Ltd
10/12/2020,Local Restrictions Support Grants � Mandatory (COVID-19),Local Restrictions Support Grants (COVID-19),"1,334.00",Bespoke Barbers of Tutbury
23/12/2020,Local Restrictions Support Grants � Mandatory (COVID-19),Local Restrictions Support Grants (COVID-19),"2,000.00",BETEL OF BRITAIN-DERBY
10/12/2020,Local Restrictions Support Grants � Mandatory (COVID-19),Local Restrictions Support Grants (COVID-19),"1,334.00",Biddulph & Carrington Ltd
11/09/2020,Third Party Payments,Recycling,"9,097.66",Biffa Waste Services Limited
18/09/2020,Third Party Payments,Recycling,"8,749.37",Biffa Waste Services Limited
25/09/2020,Third Party Payments,Recycling,"8,307.35",Biffa Waste Services Limited
09/10/2020,Third Party Payments,Recycling,"41,360.99",Biffa Waste Services Limited
02/10/2020,Third Party Payments,Recycling,"6,231.49",Biffa Waste Services Limited
09/10/2020,Third Party Payments,Recycling,"19,730.74",Biffa Waste Services Limited
09/10/2020,Third Party Payments,Recycling,"5,241.52",Biffa Waste Services Limited
30/10/2020,Third Party Payments,Recycling,"5,072.37",Biffa Waste Services Limited
13/11/2020,Third Party Payments,Recycling,"5,640.28",Biffa Waste Services Limited
12/11/2020,Third Party Payments,Recycling,"33,619.67",Biffa Waste Services Limited
20/11/2020,Third Party Payments,Recycling,"5,893.73",Biffa Waste Services Limited
27/11/2020,Third Party Payments,Recycling,"4,270.42",Biffa Waste Services Limited
16/10/2020,Third Party Payments,Recycling,"4,677.50",Biffa Waste Services Limited
23/10/2020,Third Party Payments,Recycling,"5,933.11",Biffa Waste Services Limited
12/11/2020,Third Party Payments,Recycling,"26,534.06",Biffa Waste Services Limited
06/11/2020,Third Party Payments,Recycling,"5,101.21",Biffa Waste Services Limited
30/11/2020,Local Restrictions Support Grants � Mandatory (COVID-19),Local Restrictions Support Grants (COVID-19),"2,000.00",Blithfield Sailing Club
16/11/2020,Grounds Maintenance,Open Spaces,"4,990.53",Bloomin Gardens And Landscapes Ltd
27/11/2020,Local Restrictions Support Grants � Mandatory (COVID-19),Local Restrictions Support Grants (COVID-19),"1,334.00",Blue Water Clothing LTD
16/12/2020,Local Restrictions Support Grants � Mandatory (COVID-19),Local Restrictions Support Grants (COVID-19),"1,334.00",Blues of Burton
08/12/2020,DFG Contractor Payments,Housing Standards,"4,000.00",Botanics Construction
27/11/2020,Local Restrictions Support Grants � Mandatory (COVID-19),Local Restrictions Support Grants (COVID-19),"1,334.00",Bounce Holdingds Ltd
29/10/2020,Contracted Grounds Maintenance,Horticultural Resource Centre,"20,745.78",Boverton Nurseries Ltd
25/11/2020,Local Restrictions Support Grants � Mandatory (COVID-19),Local Restrictions Support Grants (COVID-19),"2,000.00",Bradley House Club
21/12/2020,Local Restrictions Support Grants � Mandatory (COVID-19),Local Restrictions Support Grants (COVID-19),"1,334.00",Bramshall Parish Hall
02/12/2020,Local Restrictions Support Grants � Mandatory (COVID-19),Local Restrictions Support Grants (COVID-19),"1,334.00",Branston Barnes Ltd
20/11/2020,Local Restrictions Support Grants � Mandatory (COVID-19),Local Restrictions Support Grants (COVID-19),"1,334.00",Branston Motors Range LTd
30/11/2020,Local Restrictions Support Grants � Mandatory (COVID-19),Local Restrictions Support Grants (COVID-19),"1,334.00",Branston Vilage Hall
16/12/2020,Local Restrictions Support Grants � Mandatory (COVID-19),Local Restrictions Support Grants (COVID-19),"1,334.00",Brearleys
21/12/2020,Local Restrictions Support Grants � Mandatory (COVID-19),Local Restrictions Support Grants (COVID-19),"2,000.00",Bridgens
23/09/2020,Advertising,Programmes and Transformation,"1,400.25",British Telecommunications plc
14/08/2020,DFG Contractor Payments,Housing Standards,"5,713.50",Broad Oak Properties Limited
13/08/2020,DFG Contractor Payments,Housing Standards,"4,657.50",Broad Oak Properties Limited
16/07/2020,DFG Contractor Payments,Housing Standards,540.00,Broad Oak Properties Limited
16/07/2020,DFG Contractor Payments,Housing Standards,"1,077.20",Broad Oak Properties Limited
23/11/2020,DFG Contractor Payments,Housing Standards,"6,019.00",Broad Oak Properties Limited
19/11/2020,DFG Contractor Payments,Housing Standards,"5,008.50",Broad Oak Properties Limited
19/11/2020,DFG Contractor Payments,Housing Standards,"1,262.50",Broad Oak Properties Limited
21/10/2020,DFG Contractor Payments,Housing Standards,600.00,Broad Oak Properties Limited
27/08/2020,DFG Contractor Payments,Housing Standards,"5,417.50",Broad Oak Properties Limited
21/10/2020,DFG Contractor Payments,Housing Standards,"5,215.00",Broad Oak Properties Limited
23/09/2020,DFG Contractor Payments,Housing Standards,700.00,Broad Oak Properties Limited
27/11/2020,Growth Point Work,New Growth Points,596.50,Browne Jacobson LLP
28/09/2020,Growth Point Work,New Growth Points,"1,936.00",Browne Jacobson LLP
27/10/2020,Growth Point Work,New Growth Points,640.00,Browne Jacobson LLP
14/12/2020,Growth Point Work,New Growth Points,"10,802.85",Browne Jacobson LLP Client Account
07/07/2020,Fire Insurance,Leisure Management,"9,732.42",Burton & South Derbyshire College
16/12/2020,Local Restrictions Support Grants � Mandatory (COVID-19),Local Restrictions Support Grants (COVID-19),"2,000.00",burton branch RSPCA
21/12/2020,Local Restrictions Support Grants � Mandatory (COVID-19),Local Restrictions Support Grants (COVID-19),"2,000.00",Burton Bridge Brewery Partnership
10/12/2020,Local Restrictions Support Grants � Mandatory (COVID-19),Local Restrictions Support Grants (COVID-19),"1,334.00",Burton Canoe Club Company Ltd
18/10/2020,Grounds Maintenance,Open Spaces,"1,000.00",Burton Conservation Volunteers
18/12/2020,Local Restrictions Support Grants � Mandatory (COVID-19),Local Restrictions Support Grants (COVID-19),"1,334.00",Burton Hospitals League of Friends
18/12/2020,Local Restrictions Support Grants � Mandatory (COVID-19),Local Restrictions Support Grants (COVID-19),"1,334.00",Burton Kickboxing Academy
21/10/2020,Project Grant Payments,Social Regeneration,"25,480.00",Burton on Trent Rotary Club General
07/10/2020,Parish Precept Payments,Parish Council Precepts,"3,174.50",Burton Parish Council
16/12/2020,Local Restrictions Support Grants � Mandatory (COVID-19),Local Restrictions Support Grants (COVID-19),"1,334.00",Burton Phones Ltd
25/11/2020,Local Restrictions Support Grants � Mandatory (COVID-19),Local Restrictions Support Grants (COVID-19),"1,334.00",Burton Tennis & Squash Club
12/10/2020,General Grants,Housing Options,"21,500.00",Burton upon Trent & District YMCA
10/12/2020,Local Restrictions Support Grants � Mandatory (COVID-19),Local Restrictions Support Grants (COVID-19),"2,000.00",Burton upon Trent & District YMCA Taskforce
16/12/2020,Local Restrictions Support Grants � Mandatory (COVID-19),Local Restrictions Support Grants (COVID-19),"1,334.00",Burton Upon Trent Constitutrional Club
23/11/2020,Local Restrictions Support Grants � Mandatory (COVID-19),Local Restrictions Support Grants (COVID-19),"2,000.00",Burton Upon Trent District Scouts Treasurers Acount
30/11/2020,Local Restrictions Support Grants � Mandatory (COVID-19),Local Restrictions Support Grants (COVID-19),"1,334.00",Burton Yamaha Music School Ltd
27/11/2020,Local Restrictions Support Grants � Mandatory (COVID-19),Local Restrictions Support Grants (COVID-19),"2,000.00",C B Taverns Ltd
20/11/2020,Local Restrictions Support Grants � Mandatory (COVID-19),Local Restrictions Support Grants (COVID-19),"1,334.00",cabaret theatre school
10/12/2020,Local Restrictions Support Grants � Mandatory (COVID-19),Local Restrictions Support Grants (COVID-19),"2,000.00",Caf� Emaan Ltd
01/10/2020,Software Licenses & Contracts,Customer Services Centres,"1,440.00",Cammax Ltd
29/09/2020,Hire of Equipment,Central Reprographics,553.89,Canon Uk Ltd
29/10/2020,Hire of Equipment,Central Reprographics,865.51,Canon Uk Ltd
08/11/2020,Hire of Equipment,Central Reprographics,517.96,Canon Uk Ltd
11/11/2020,Contactless Card Processing Costs,Car Parks - General,688.88,Capita Business Services Ltd
07/10/2020,Contactless Card Processing Costs,Car Parks - General,641.92,Capita Business Services Ltd
11/09/2020,Contactless Card Processing Costs,Car Parks - General,656.32,Capita Business Services Ltd
24/11/2020,Consultants,Council Tax Collection,"4,650.00",Capita Business Services Ltd
02/12/2020,Local Restrictions Support Grants � Mandatory (COVID-19),Local Restrictions Support Grants (COVID-19),"1,334.00",Carats (Burton) LTD
27/11/2020,Local Restrictions Support Grants � Mandatory (COVID-19),Local Restrictions Support Grants (COVID-19),"1,334.00",Carole's Cards and Gifts
28/10/2020,Temporary Staff Costs,Planning Policy,"1,440.00",Carrington West Ltd
04/11/2020,Temporary Staff Costs,Planning Policy,"1,428.00",Carrington West Ltd
28/10/2020,Temporary Staff Costs,Planning Policy,"1,455.84",Carrington West Ltd
02/12/2020,Temporary Staff Costs,Planning Policy,"1,395.84",Carrington West Ltd
18/11/2020,Temporary Staff Costs,Planning Policy,"1,548.00",Carrington West Ltd
18/11/2020,Temporary Staff Costs,Planning Policy,"1,536.00",Carrington West Ltd
09/12/2020,Temporary Staff Costs,Planning Policy,"1,472.16",Carrington West Ltd
02/12/2020,Temporary Staff Costs,Planning Policy,"1,215.84",Carrington West Ltd
25/11/2020,Local Restrictions Support Grants � Mandatory (COVID-19),Local Restrictions Support Grants (COVID-19),"2,000.00",Cassandras (2005) Ltd
15/09/2020,DFG Contractor Payments,Housing Standards,"4,876.36",CCSS Ltd
04/11/2020,Direct Purchases,DSO Stores Account,"25,306.69",Central Fuel Oils
06/10/2020,Direct Purchases,DSO Stores Account,"25,451.61",Central Fuel Oils
07/10/2020,Direct Purchases,DSO Stores Account,784.00,Central Fuel Oils
04/12/2020,Local Restrictions Support Grants � Mandatory (COVID-19),Local Restrictions Support Grants (COVID-19),"1,334.00",Charles Martin Watch Company
04/12/2020,Local Restrictions Support Grants � Mandatory (COVID-19),Local Restrictions Support Grants (COVID-19),"1,334.00",Charles Martin Watch Company
26/11/2020,Christmas Decorations,Grants for Tourism,720.00,Christmas Plus
10/12/2020,Local Restrictions Support Grants � Mandatory (COVID-19),Local Restrictions Support Grants (COVID-19),"1,334.00",Church Farm
02/10/2020,Books and Publications,Financial Management Unit,860.00,CIPFA Business Ltd
20/11/2020,Penalty Charge Notice Processing,Car Parks - General,528.00,City Of Stoke On Trent
11/10/2020,Printing and Stationery,Electoral Services,"13,315.22",Civica Election Services Limited
11/10/2020,Printing and Stationery,Electoral Services,"5,899.63",Civica Election Services Limited
05/11/2020,Printing and Stationery,Electoral Services,"3,917.64",Civica Election Services Limited
30/11/2020,Local Restrictions Support Grants � Mandatory (COVID-19),Local Restrictions Support Grants (COVID-19),"1,334.00",Claudias Limited
16/12/2020,Local Restrictions Support Grants � Mandatory (COVID-19),Local Restrictions Support Grants (COVID-19),"1,334.00",Claypotlounge Limited
30/10/2020,Other Equipment,Horticultural Resource Centre,508.50,Codnor Horticultural Wholesale Supplies Ltd
18/10/2020,Temporary Staff Costs,Public Conveniences,761.36,Comensura Ltd
29/11/2020,Temporary Staff Costs,Recycling,"2,603.68",Comensura Ltd
04/10/2020,Temporary Staff Costs,Recycling,"3,802.20",Comensura Ltd
11/10/2020,Temporary Staff Costs,Recycling,"4,422.00",Comensura Ltd
01/11/2020,Temporary Staff Costs,Recycling,"3,801.06",Comensura Ltd
28/10/2020,Temporary Staff Costs,Recycling,"3,292.25",Comensura Ltd
22/11/2020,Temporary Staff Costs,Recycling,"2,607.43",Comensura Ltd
15/11/2020,Temporary Staff Costs,Recycling,"3,562.64",Comensura Ltd
08/11/2020,Temporary Staff Costs,Recycling,"3,413.90",Comensura Ltd
30/09/2020,Temporary Staff Costs,Recycling,"4,236.77",Comensura Ltd
23/09/2020,Temporary Staff Costs,Recycling,"3,887.24",Comensura Ltd
18/10/2020,Temporary Staff Costs,Recycling,"3,867.43",Comensura Ltd
15/11/2020,Temporary Staff Costs,Refuse Collection,"3,907.31",Comensura Ltd
08/11/2020,Temporary Staff Costs,Refuse Collection,"2,564.09",Comensura Ltd
01/11/2020,Temporary Staff Costs,Refuse Collection,"3,639.49",Comensura Ltd
22/11/2020,Temporary Staff Costs,Refuse Collection,"3,772.17",Comensura Ltd
28/10/2020,Temporary Staff Costs,Refuse Collection,"3,632.89",Comensura Ltd
29/11/2020,Temporary Staff Costs,Refuse Collection,"5,368.22",Comensura Ltd
04/10/2020,Temporary Staff Costs,Refuse Collection,"4,579.21",Comensura Ltd
11/10/2020,Temporary Staff Costs,Refuse Collection,"3,430.86",Comensura Ltd
18/10/2020,Temporary Staff Costs,Refuse Collection,"3,467.88",Comensura Ltd
23/09/2020,Temporary Staff Costs,Refuse Collection,"4,891.20",Comensura Ltd
30/09/2020,Temporary Staff Costs,Refuse Collection,"3,284.67",Comensura Ltd
11/10/2020,Temporary Staff Costs,Street Cleaning,834.48,Comensura Ltd
04/10/2020,Temporary Staff Costs,Street Cleaning,"1,315.67",Comensura Ltd
29/11/2020,Temporary Staff Costs,Street Cleaning,964.76,Comensura Ltd
28/10/2020,Temporary Staff Costs,Street Cleaning,941.02,Comensura Ltd
30/09/2020,Temporary Staff Costs,Street Cleaning,927.20,Comensura Ltd
23/09/2020,Temporary Staff Costs,Street Cleaning,842.86,Comensura Ltd
18/10/2020,Temporary Staff Costs,Street Cleaning,649.04,Comensura Ltd
20/11/2020,Local Restrictions Support Grants � Mandatory (COVID-19),Local Restrictions Support Grants (COVID-19),"1,334.00",Computer Lifeline Ltd
20/11/2020,Local Restrictions Support Grants � Mandatory (COVID-19),Local Restrictions Support Grants (COVID-19),"1,334.00",Computers n stuff Ltd
18/12/2020,Local Restrictions Support Grants � Mandatory (COVID-19),Local Restrictions Support Grants (COVID-19),"1,334.00",Conal Hairdressing
18/12/2020,Local Restrictions Support Grants � Mandatory (COVID-19),Local Restrictions Support Grants (COVID-19),"1,334.00",Confessions Burton LTD
27/11/2020,Local Restrictions Support Grants � Mandatory (COVID-19),Local Restrictions Support Grants (COVID-19),"2,000.00",Connektred Ltd
27/11/2020,Local Restrictions Support Grants � Mandatory (COVID-19),Local Restrictions Support Grants (COVID-19),"1,334.00",Core 300 Burton Ltd
25/11/2020,Local Restrictions Support Grants � Mandatory (COVID-19),Local Restrictions Support Grants (COVID-19),"3,000.00",COYTE FURNISHINGS LTD
30/11/2020,Local Restrictions Support Grants � Mandatory (COVID-19),Local Restrictions Support Grants (COVID-19),"2,000.00",Coytes Capets Ltd
17/11/2020,Repairs & Maintenance to Buildings,Housing Options - Accommodation,922.23,Coytes Carpets Ltd
02/09/2020,Consultants,Development Control,"2,500.00",CP Viability Ltd
24/11/2020,Provision of Wheelie Bins,Recycling,"13,244.40",Craemer UK Limited
04/11/2020,Provision of Wheelie Bins,Recycling,"1,640.00",Craemer UK Limited
13/11/2020,Provision of Wheelie Bins,Refuse Collection,"7,475.00",Craemer UK Limited
03/11/2020,Provision of Wheelie Bins,Refuse Collection,"1,640.00",Craemer UK Limited
16/06/2020,Safer Public Spaces (Covid-19),Re-Opening the High Streets (COVID-19),"1,047.50",Crowd Control Solutions
16/12/2020,Local Restrictions Support Grants � Mandatory (COVID-19),Local Restrictions Support Grants (COVID-19),"2,000.00",Csm Furnishings Ltd
31/08/2020,Professional Support,Stronger Towns Fund,"10,000.00",Cushman & Wakefield
26/06/2020,Professional Support,Stronger Towns Fund,"2,500.00",Cushman & Wakefield
21/08/2020,Professional Support,Stronger Towns Fund,"12,000.00",Cushman & Wakefield
30/09/2020,Professional Support,Uttoxeter Masterplan,"8,300.00",Cushman & Wakefield
29/10/2020,Professional Support,Uttoxeter Masterplan,"8,300.00",Cushman & Wakefield
27/11/2020,Local Restrictions Support Grants � Mandatory (COVID-19),Local Restrictions Support Grants (COVID-19),"2,000.00",D & S (Mids) Limited
03/11/2020,Car Parks Maintenance,Open Spaces,"12,600.00",D Mccarthy Bros (Lichfield) Ltd
16/10/2020,Terms Maintenance,Open Spaces,"2,300.00",D Mccarthy Bros (Lichfield) Ltd
10/11/2020,Safer Public Spaces (Covid-19),Re-Opening the High Streets (COVID-19),795.00,D S K Engineering Services
07/11/2020,Grounds Maintenance,Open Spaces,600.00,D S K Engineering Services
07/11/2020,Grounds Maintenance,Open Spaces,750.00,D S K Engineering Services
07/11/2020,Grounds Maintenance,Open Spaces,810.00,D S K Engineering Services
20/10/2020,Grounds Maintenance,Open Spaces,"7,100.00",D S K Engineering Services
20/10/2020,Grounds Maintenance,Open Spaces,"4,676.00",D S K Engineering Services
17/10/2020,Grounds Maintenance,Open Spaces,"3,416.00",D S K Engineering Services
14/11/2020,Grounds Maintenance,Open Spaces,"3,801.50",D S K Engineering Services
14/11/2020,Grounds Maintenance,Open Spaces,813.50,D S K Engineering Services
12/12/2020,Grounds Maintenance,Open Spaces,"2,979.20",D S K Engineering Services
12/12/2020,Grounds Maintenance,Open Spaces,804.80,D S K Engineering Services
12/12/2020,Grounds Maintenance,Open Spaces,"11,865.00",D S K Engineering Services
12/12/2020,Grounds Maintenance,Open Spaces,"10,551.00",D S K Engineering Services
12/12/2020,Grounds Maintenance,Open Spaces,950.00,D S K Engineering Services
14/11/2020,Play Equipment,Open Spaces,"2,250.50",D S K Engineering Services
14/11/2020,Play Equipment,Open Spaces,813.50,D S K Engineering Services
17/10/2020,Play Equipment,Open Spaces,"1,636.00",D S K Engineering Services
17/10/2020,Play Equipment,Open Spaces,"2,524.00",D S K Engineering Services
12/12/2020,Play Equipment,Open Spaces,"2,340.80",D S K Engineering Services
12/12/2020,Play Equipment,Open Spaces,609.20,D S K Engineering Services
30/11/2020,Local Restrictions Support Grants � Mandatory (COVID-19),Local Restrictions Support Grants (COVID-19),"1,334.00",Daisy Chain (Uttoxeter) Ltd
21/12/2020,Local Restrictions Support Grants � Mandatory (COVID-19),Local Restrictions Support Grants (COVID-19),"1,334.00",Daisychain Benevolent Fund
30/11/2020,Safer Public Spaces (Covid-19),Re-Opening the High Streets (COVID-19),550.00,Danuk Innovative Gifts Ltd
27/11/2020,Safer Public Spaces (Covid-19),Re-Opening the High Streets (COVID-19),"2,080.00",Danuk Innovative Gifts Ltd
18/12/2020,Local Restrictions Support Grants � Mandatory (COVID-19),Local Restrictions Support Grants (COVID-19),"2,000.00",De Rijk Limited
31/08/2020,Printing and Stationery,Electoral Services,976.90,Democracy Counts Ltd
07/12/2020,Local Restrictions Support Grants � Mandatory (COVID-19),Local Restrictions Support Grants (COVID-19),"1,334.00",Denstone Village Hall Committee
27/10/2020,Commission on Ticket Sales,Customer Services Centres,572.70,Derbyshire County Council
25/11/2020,Local Restrictions Support Grants � Mandatory (COVID-19),Local Restrictions Support Grants (COVID-19),"2,000.00",Dog and Partridge Marchington
27/11/2020,Local Restrictions Support Grants � Mandatory (COVID-19),Local Restrictions Support Grants (COVID-19),"1,334.00",DVM enterprises ltd
25/11/2020,Local Restrictions Support Grants � Mandatory (COVID-19),Local Restrictions Support Grants (COVID-19),"2,000.00",E Gold Holdings
23/09/2020,Electricity,Millers Lane Depot,"1,170.73",e.on
22/10/2020,Electricity,Millers Lane Depot,990.35,e.on
25/11/2020,Electricity,Millers Lane Depot,"1,292.50",e.on
02/10/2020,Car Parks Maintenance,Open Spaces,"13,295.09",e.on
28/09/2020,Grounds Maintenance,Coopers Square Car Park - Surface,"15,199.24",E.on Energy Solutions Ltd
16/12/2020,Local Restrictions Support Grants � Mandatory (COVID-19),Local Restrictions Support Grants (COVID-19),"1,334.00",ego hair design
27/11/2020,Local Restrictions Support Grants � Mandatory (COVID-19),Local Restrictions Support Grants (COVID-19),"2,000.00",Elegance Tailoring
27/11/2020,Local Restrictions Support Grants � Mandatory (COVID-19),Local Restrictions Support Grants (COVID-19),"3,000.00",Eleganze Limited
12/10/2020,Repairs & Maintenance to Buildings,Village & Community Halls,"3,844.00",Elite Roofing & Cladding Ltd
12/10/2020,Repairs & Maintenance to Buildings,Village & Community Halls,"1,226.00",Elite Roofing & Cladding Ltd
12/10/2020,Repairs & Maintenance to Buildings,Village & Community Halls,"4,862.00",Elite Roofing & Cladding Ltd
03/11/2020,Terms Maintenance,Open Spaces,"1,226.00",Elite Roofing & Cladding Ltd
02/11/2020,DFG Contractor Payments,Housing Standards,578.00,Enable Access Ltd
09/10/2020,Ticket Sales,Brewhouse Arts Centre,"4,200.00",Entertainers Show Providers Ltd
11/09/2020,Project Grant Payments,Enterprise,"1,500,000.00",Environment Agency
10/12/2020,Local Restrictions Support Grants � Discretionary (COVID-19),Local Restrictions Support Grants (COVID-19),"1,334.00",EPIC ACTION IMAGERY LTD
02/12/2020,Local Restrictions Support Grants � Mandatory (COVID-19),Local Restrictions Support Grants (COVID-19),"1,334.00",Escape Hair Design Ltd
27/11/2020,Local Restrictions Support Grants � Mandatory (COVID-19),Local Restrictions Support Grants (COVID-19),"1,334.00",Every House Coffee Shop Ltd
20/11/2020,Local Restrictions Support Grants � Mandatory (COVID-19),Local Restrictions Support Grants (COVID-19),"2,000.00",Every House Interiors Lrd
27/11/2020,Local Restrictions Support Grants � Mandatory (COVID-19),Local Restrictions Support Grants (COVID-19),"1,334.00",Exclusive Classic Cars Ltd
07/12/2020,Local Restrictions Support Grants � Mandatory (COVID-19),Local Restrictions Support Grants (COVID-19),"1,334.00",Exquisite
04/12/2020,Local Restrictions Support Grants � Mandatory (COVID-19),Local Restrictions Support Grants (COVID-19),"2,000.00",Favourite Thai Ltd
04/12/2020,Local Restrictions Support Grants � Mandatory (COVID-19),Local Restrictions Support Grants (COVID-19),"2,000.00",Favourite Thai Ltd
04/12/2020,Local Restrictions Support Grants � Mandatory (COVID-19),Local Restrictions Support Grants (COVID-19),"1,334.00",Feathers & Oak Ltd
04/12/2020,Local Restrictions Support Grants � Mandatory (COVID-19),Local Restrictions Support Grants (COVID-19),"1,334.00",Feathers & Oak Ltd
23/12/2020,Local Restrictions Support Grants � Mandatory (COVID-19),Local Restrictions Support Grants (COVID-19),"2,000.00",Febo Enterprises Ltd
25/09/2020,Vehicle Maintenance Costs,Street Cleaning,552.46,Filmers Garage Limited
20/11/2020,Local Restrictions Support Grants � Mandatory (COVID-19),Local Restrictions Support Grants (COVID-19),"1,334.00",Floriosa Ltd
21/12/2020,Local Restrictions Support Grants � Mandatory (COVID-19),Local Restrictions Support Grants (COVID-19),"1,334.00",Fraxinus
27/11/2020,Local Restrictions Support Grants � Mandatory (COVID-19),Local Restrictions Support Grants (COVID-19),"1,334.00",Frazer Robert Hairdressing
04/12/2020,Local Restrictions Support Grants � Mandatory (COVID-19),Local Restrictions Support Grants (COVID-19),"2,000.00",Freida Ltd
04/12/2020,Local Restrictions Support Grants � Mandatory (COVID-19),Local Restrictions Support Grants (COVID-19),"2,000.00",Freida Ltd
25/11/2020,Local Restrictions Support Grants � Mandatory (COVID-19),Local Restrictions Support Grants (COVID-19),"2,000.00",Friary Shoes Limited
31/10/2020,Direct Purchases,DSO Stores Account,845.13,Fuel Card Services Ltd
10/12/2020,Local Restrictions Support Grants � Mandatory (COVID-19),Local Restrictions Support Grants (COVID-19),"1,334.00",Fulcrum Consultancy (UK) Ltd
10/12/2020,Local Restrictions Support Grants � Mandatory (COVID-19),Local Restrictions Support Grants (COVID-19),"1,334.00",Fundamental Fitness Ltd
25/11/2020,Local Restrictions Support Grants � Mandatory (COVID-19),Local Restrictions Support Grants (COVID-19),"2,000.00",Furniture Monkey Ltd
25/11/2020,Local Restrictions Support Grants � Mandatory (COVID-19),Local Restrictions Support Grants (COVID-19),"1,334.00",G T Fitness Group Ltd
16/12/2020,Local Restrictions Support Grants � Mandatory (COVID-19),Local Restrictions Support Grants (COVID-19),"1,334.00",G&N Bespoke Furniture Ltd
27/11/2020,Local Restrictions Support Grants � Mandatory (COVID-19),Local Restrictions Support Grants (COVID-19),"2,000.00",Ganley Leisure Ltd
27/11/2020,Local Restrictions Support Grants � Mandatory (COVID-19),Local Restrictions Support Grants (COVID-19),"1,334.00",Gardner Hair and Barber Co Ltd
18/12/2020,Local Restrictions Support Grants � Mandatory (COVID-19),Local Restrictions Support Grants (COVID-19),"2,000.00",GHH LLP
04/12/2020,Local Restrictions Support Grants � Mandatory (COVID-19),Local Restrictions Support Grants (COVID-19),"1,334.00",Girlguiding UK (Burton on Trent Div)
04/12/2020,Local Restrictions Support Grants � Mandatory (COVID-19),Local Restrictions Support Grants (COVID-19),"1,334.00",Girlguiding UK (Burton on Trent Div)
01/10/2020,Vehicle Maintenance Costs,Recycling,"4,082.21",Go Plant Limited
01/10/2020,Vehicle Maintenance Costs,Recycling,"4,082.21",Go Plant Limited
01/10/2020,Vehicle Maintenance Costs,Recycling,"4,228.66",Go Plant Limited
01/10/2020,Vehicle Maintenance Costs,Recycling,"3,426.16",Go Plant Limited
01/10/2020,Vehicle Maintenance Costs,Recycling,"4,082.21",Go Plant Limited
01/10/2020,Vehicle Maintenance Costs,Recycling,"3,274.62",Go Plant Limited
01/10/2020,Vehicle Maintenance Costs,Recycling,"3,274.62",Go Plant Limited
01/10/2020,Vehicle Maintenance Costs,Recycling,"3,274.62",Go Plant Limited
01/10/2020,Vehicle Maintenance Costs,Recycling,"4,082.21",Go Plant Limited
01/10/2020,Vehicle Maintenance Costs,Recycling,"4,082.21",Go Plant Limited
01/11/2020,Vehicle Maintenance Costs,Recycling,"3,438.33",Go Plant Limited
01/11/2020,Vehicle Maintenance Costs,Recycling,"4,286.33",Go Plant Limited
01/11/2020,Vehicle Maintenance Costs,Recycling,"4,286.33",Go Plant Limited
01/11/2020,Vehicle Maintenance Costs,Recycling,"4,286.33",Go Plant Limited
01/11/2020,Vehicle Maintenance Costs,Recycling,"4,286.33",Go Plant Limited
01/11/2020,Vehicle Maintenance Costs,Recycling,"4,286.33",Go Plant Limited
01/11/2020,Vehicle Maintenance Costs,Recycling,"4,440.08",Go Plant Limited
01/11/2020,Vehicle Maintenance Costs,Recycling,"3,597.50",Go Plant Limited
30/10/2020,Vehicle Maintenance Costs,Recycling,"12,965.10",Go Plant Limited
30/10/2020,Vehicle Maintenance Costs,Recycling,951.75,Go Plant Limited
30/10/2020,Vehicle Maintenance Costs,Recycling,"4,261.20",Go Plant Limited
01/11/2020,Vehicle Maintenance Costs,Recycling,"3,438.33",Go Plant Limited
01/11/2020,Vehicle Maintenance Costs,Recycling,"3,438.33",Go Plant Limited
30/10/2020,Vehicle Maintenance Costs,Recycling,935.30,Go Plant Limited
01/10/2020,Vehicle Maintenance Costs,Refuse Collection,"3,274.62",Go Plant Limited
01/10/2020,Vehicle Maintenance Costs,Refuse Collection,"3,274.62",Go Plant Limited
01/10/2020,Vehicle Maintenance Costs,Refuse Collection,"2,595.80",Go Plant Limited
01/10/2020,Vehicle Maintenance Costs,Refuse Collection,"3,274.62",Go Plant Limited
01/10/2020,Vehicle Maintenance Costs,Refuse Collection,"3,274.62",Go Plant Limited
01/11/2020,Vehicle Maintenance Costs,Refuse Collection,"3,438.33",Go Plant Limited
30/10/2020,Vehicle Maintenance Costs,Refuse Collection,954.45,Go Plant Limited
30/10/2020,Vehicle Maintenance Costs,Refuse Collection,836.10,Go Plant Limited
01/11/2020,Vehicle Maintenance Costs,Refuse Collection,"3,438.33",Go Plant Limited
01/11/2020,Vehicle Maintenance Costs,Refuse Collection,"3,438.33",Go Plant Limited
01/11/2020,Vehicle Maintenance Costs,Refuse Collection,"3,438.33",Go Plant Limited
30/10/2020,Vehicle Maintenance Costs,Refuse Collection,704.18,Go Plant Limited
01/11/2020,Vehicle Maintenance Costs,Refuse Collection,"2,725.58",Go Plant Limited
01/10/2020,Vehicle Maintenance Costs,Street Cleaning,"1,785.32",Go Plant Limited
01/10/2020,Vehicle Maintenance Costs,Street Cleaning,"1,785.32",Go Plant Limited
01/10/2020,Vehicle Maintenance Costs,Street Cleaning,"1,785.32",Go Plant Limited
01/10/2020,Vehicle Maintenance Costs,Street Cleaning,"1,785.32",Go Plant Limited
01/10/2020,Vehicle Maintenance Costs,Street Cleaning,632.89,Go Plant Limited
01/10/2020,Vehicle Maintenance Costs,Street Cleaning,632.89,Go Plant Limited
01/10/2020,Vehicle Maintenance Costs,Street Cleaning,632.89,Go Plant Limited
01/10/2020,Vehicle Maintenance Costs,Street Cleaning,713.46,Go Plant Limited
01/10/2020,Vehicle Maintenance Costs,Street Cleaning,713.46,Go Plant Limited
01/10/2020,Vehicle Maintenance Costs,Street Cleaning,"2,324.76",Go Plant Limited
01/10/2020,Vehicle Maintenance Costs,Street Cleaning,"2,324.76",Go Plant Limited
01/11/2020,Vehicle Maintenance Costs,Street Cleaning,749.16,Go Plant Limited
01/11/2020,Vehicle Maintenance Costs,Street Cleaning,749.16,Go Plant Limited
01/11/2020,Vehicle Maintenance Costs,Street Cleaning,"2,441.00",Go Plant Limited
01/11/2020,Vehicle Maintenance Costs,Street Cleaning,"2,441.00",Go Plant Limited
30/10/2020,Vehicle Maintenance Costs,Street Cleaning,"8,020.65",Go Plant Limited
01/11/2020,Vehicle Maintenance Costs,Street Cleaning,664.50,Go Plant Limited
01/11/2020,Vehicle Maintenance Costs,Street Cleaning,664.50,Go Plant Limited
01/11/2020,Vehicle Maintenance Costs,Street Cleaning,664.50,Go Plant Limited
01/11/2020,Vehicle Maintenance Costs,Street Cleaning,"1,874.58",Go Plant Limited
01/11/2020,Vehicle Maintenance Costs,Street Cleaning,"1,874.58",Go Plant Limited
01/11/2020,Vehicle Maintenance Costs,Street Cleaning,"1,874.58",Go Plant Limited
01/11/2020,Vehicle Maintenance Costs,Street Cleaning,"1,874.58",Go Plant Limited
01/10/2020,Vehicle Maintenance Costs,Trade Waste Recycling,"3,274.62",Go Plant Limited
01/11/2020,Vehicle Maintenance Costs,Trade Waste Recycling,"3,438.33",Go Plant Limited
20/11/2020,Local Restrictions Support Grants � Mandatory (COVID-19),Local Restrictions Support Grants (COVID-19),"2,000.00",Gold Giraffe Enterprises Ltd
23/11/2020,Local Restrictions Support Grants � Mandatory (COVID-19),Local Restrictions Support Grants (COVID-19),"1,334.00",Gorkhatutbury Ltd
16/10/2020,Grounds Maintenance,Open Spaces,541.00,Grange Wood Fencing
04/12/2020,External Audit Fees,External Audit,"9,404.00",Grant Thornton UK LLP
27/11/2020,Local Restrictions Support Grants � Mandatory (COVID-19),Local Restrictions Support Grants (COVID-19),"1,334.00",Greelys Ltd
03/11/2020,Repairs & Maintenance to Buildings,Village & Community Halls,"3,150.00",GSR Fabrications Ltd
03/11/2020,Repairs & Maintenance to Buildings,Facilities Management,750.00,GSR Fabrications Ltd
07/12/2020,Local Restrictions Support Grants � Mandatory (COVID-19),Local Restrictions Support Grants (COVID-19),"1,334.00",Guys & Dolls
18/12/2020,Local Restrictions Support Grants � Mandatory (COVID-19),Local Restrictions Support Grants (COVID-19),"2,000.00",Gym (Burton) Ltd
25/11/2020,Local Restrictions Support Grants � Mandatory (COVID-19),Local Restrictions Support Grants (COVID-19),"1,334.00",H & D Nails
25/11/2020,Local Restrictions Support Grants � Mandatory (COVID-19),Local Restrictions Support Grants (COVID-19),"1,334.00",H.T.Le Limited
30/11/2020,Local Restrictions Support Grants � Mandatory (COVID-19),Local Restrictions Support Grants (COVID-19),"1,334.00",Hair @ 38 Ltd
18/12/2020,Local Restrictions Support Grants � Mandatory (COVID-19),Local Restrictions Support Grants (COVID-19),"1,334.00",Hairloom
30/11/2020,Local Restrictions Support Grants � Mandatory (COVID-19),Local Restrictions Support Grants (COVID-19),"1,334.00",Hanbury Memorial Hall Fund
16/11/2020,Local Restrictions Support Grants � Mandatory (COVID-19),Local Restrictions Support Grants (COVID-19),"1,334.00",Hanbury Wedding Company Limited
09/09/2020,DFG Contractor Payments,Housing Standards,"3,999.00",Handicare Accessibility Ltd
31/10/2020,DFG Contractor Payments,Housing Standards,"4,320.00",Handicare Accessibility Ltd
14/12/2020,Contracted Grounds Maintenance,Cemeteries,"1,576.00",Hardy Signs Ltd
25/09/2020,Printing and Stationery,Brewhouse Arts Centre,600.25,Hardy Signs Ltd
30/10/2020,Safer Public Spaces (Covid-19),Re-Opening the High Streets (COVID-19),"1,147.50",Hardy Signs Ltd
13/10/2020,Dangerous Structures,Building Consultancy Non-Chargeable Activities,631.00,Harvey & Clark Ltd
10/11/2020,DFG Contractor Payments,Housing Standards,"7,817.15",Harvey & Clark Ltd
09/10/2020,DFG Contractor Payments,Housing Standards,"6,815.20",Harvey & Clark Ltd
13/10/2020,DFG Contractor Payments,Housing Standards,"8,980.35",Harvey & Clark Ltd
27/10/2020,DFG Contractor Payments,Housing Standards,"14,532.20",Harvey & Clark Ltd
11/09/2020,DFG Contractor Payments,Housing Standards,"10,230.50",Harvey & Clark Ltd
18/12/2020,Local Restrictions Support Grants � Mandatory (COVID-19),Local Restrictions Support Grants (COVID-19),"1,334.00",HarveyJ Vinatage Tea Emporium Ltd
01/10/2020,Medical Examinations,Human Resources,591.50,Healthwork Ltd
01/11/2020,Medical Examinations,Human Resources,591.50,Healthwork Ltd
02/12/2020,Local Restrictions Support Grants � Mandatory (COVID-19),Local Restrictions Support Grants (COVID-19),"2,000.00",Helen's Bakehouse & Tearoom
27/11/2020,Local Restrictions Support Grants � Mandatory (COVID-19),Local Restrictions Support Grants (COVID-19),"1,334.00",Henhurst & District Recreation Club
10/12/2020,Local Restrictions Support Grants � Mandatory (COVID-19),Local Restrictions Support Grants (COVID-19),"2,000.00",Herron Windows (UK) Ltd
20/11/2020,Local Restrictions Support Grants � Mandatory (COVID-19),Local Restrictions Support Grants (COVID-19),"1,334.00",Hibrow Cosmetic Clinic
23/11/2020,Local Restrictions Support Grants � Mandatory (COVID-19),Local Restrictions Support Grants (COVID-19),"1,334.00",Hide Hair Ltd
10/12/2020,Local Restrictions Support Grants � Mandatory (COVID-19),Local Restrictions Support Grants (COVID-19),"1,334.00",High View Cottage
16/12/2020,Wasps Expenditure,Councillors Community Fund,967.82,Highfield Activities Project
25/11/2020,Local Restrictions Support Grants � Mandatory (COVID-19),Local Restrictions Support Grants (COVID-19),"1,334.00",Highridge Computers Ltd
20/11/2020,Local Restrictions Support Grants � Mandatory (COVID-19),Local Restrictions Support Grants (COVID-19),"1,334.00",Hohm Coffee & Bar Ltd
10/12/2020,Local Restrictions Support Grants � Mandatory (COVID-19),Local Restrictions Support Grants (COVID-19),"1,334.00",Holland Sports Club Ltd
23/11/2020,Local Restrictions Support Grants � Mandatory (COVID-19),Local Restrictions Support Grants (COVID-19),"1,334.00",Holly Moggs Beauty
07/12/2020,Local Restrictions Support Grants � Mandatory (COVID-19),Local Restrictions Support Grants (COVID-19),"1,334.00",Home of Floors
23/11/2020,Local Restrictions Support Grants � Mandatory (COVID-19),Local Restrictions Support Grants (COVID-19),"1,334.00",Hotchkiss Oak Furniture Ltd
10/12/2020,Local Restrictions Support Grants � Mandatory (COVID-19),Local Restrictions Support Grants (COVID-19),"1,334.00",HW Stretton Farm Account
10/12/2020,Local Restrictions Support Grants � Mandatory (COVID-19),Local Restrictions Support Grants (COVID-19),"1,334.00",Icepale Ltd
26/10/2020,Contracted Grounds Maintenance,Cemeteries,"2,225.45",Idverde Limited
27/11/2020,Contracted Grounds Maintenance,Cemeteries,"2,848.12",Idverde Limited
26/10/2020,Contracted Grounds Maintenance,Cemeteries,"6,935.35",Idverde Limited
16/11/2020,Contracted Grounds Maintenance,Cemeteries,610.05,Idverde Limited
16/11/2020,Contracted Grounds Maintenance,Cemeteries,"2,168.94",Idverde Limited
27/11/2020,Grounds Maintenance,Land Drainage,"2,017.12",Idverde Limited
14/10/2020,Grounds Maintenance,Land Drainage,"2,737.52",Idverde Limited
30/10/2020,Car Parks Maintenance,Open Spaces,"2,423.83",Idverde Limited
27/11/2020,Car Parks Maintenance,Open Spaces,571.08,Idverde Limited
30/11/2020,Car Parks Maintenance,Open Spaces,"2,423.83",Idverde Limited
26/11/2020,Car Parks Maintenance,Open Spaces,"1,715.10",Idverde Limited
30/09/2020,Car Parks Maintenance,Open Spaces,"2,423.83",Idverde Limited
22/09/2020,Contracted Grounds Maintenance,Open Spaces,"5,930.44",Idverde Limited
22/09/2020,Contracted Grounds Maintenance,Open Spaces,"8,112.83",Idverde Limited
15/09/2020,Contracted Grounds Maintenance,Open Spaces,"59,683.00",Idverde Limited
15/09/2020,Contracted Grounds Maintenance,Open Spaces,"4,424.38",Idverde Limited
15/09/2020,Contracted Grounds Maintenance,Open Spaces,"9,198.11",Idverde Limited
07/12/2020,Contracted Grounds Maintenance,Open Spaces,"1,202.84",Idverde Limited
26/10/2020,Contracted Grounds Maintenance,Open Spaces,"1,581.06",Idverde Limited
26/10/2020,Contracted Grounds Maintenance,Open Spaces,"6,681.02",Idverde Limited
26/10/2020,Contracted Grounds Maintenance,Open Spaces,"54,309.31",Idverde Limited
26/10/2020,Contracted Grounds Maintenance,Open Spaces,"12,825.10",Idverde Limited
03/11/2020,Contracted Grounds Maintenance,Open Spaces,"5,025.49",Idverde Limited
27/11/2020,Contracted Grounds Maintenance,Open Spaces,"1,202.84",Idverde Limited
18/11/2020,Contracted Grounds Maintenance,Open Spaces,"1,202.84",Idverde Limited
18/11/2020,Contracted Grounds Maintenance,Open Spaces,"9,839.27",Idverde Limited
18/11/2020,Contracted Grounds Maintenance,Open Spaces,"7,121.05",Idverde Limited
16/11/2020,Contracted Grounds Maintenance,Open Spaces,"46,518.32",Idverde Limited
16/11/2020,Contracted Grounds Maintenance,Open Spaces,"2,988.42",Idverde Limited
16/11/2020,Contracted Grounds Maintenance,Open Spaces,"1,242.77",Idverde Limited
07/12/2020,Local Restrictions Support Grants � Mandatory (COVID-19),Local Restrictions Support Grants (COVID-19),"1,334.00",Impress Promotions Midlands
07/10/2020,Consultants,Business Rate Collection,"2,775.00",Inform CPI Ltd
04/11/2020,Consultants,Business Rate Collection,"1,500.00",Inform CPI Ltd
04/12/2020,Consultants,Business Rate Collection,"2,415.00",Inform CPI Ltd
11/11/2020,Consultants,Business Rate Collection,"2,625.00",Inform CPI Ltd
13/10/2020,ICT Departmental Purchases,ICT,755.36,Insight Direct Uk
30/11/2020,ICT Departmental Purchases,ICT,"6,319.30",Insight Direct Uk
04/12/2020,ICT Departmental Purchases,ICT,"2,199.98",Insight Direct Uk
30/11/2020,ICT Departmental Purchases,ICT,"12,475.00",Insight Direct Uk
30/09/2020,Software Licenses & Contracts,Bond Street Car Park Non Retained Income,"6,524.00",Integrated Skills Limited
31/08/2020,Consultants,Refuse Collection,"8,075.00",Integrated Skills Limited
20/11/2020,Local Restrictions Support Grants � Mandatory (COVID-19),Local Restrictions Support Grants (COVID-19),"1,334.00",Isey & Co Limited
21/12/2020,Local Restrictions Support Grants � Mandatory (COVID-19),Local Restrictions Support Grants (COVID-19),"1,334.00",J & N at Cab Limited
31/08/2020,Security of Premises,Burton Retail Market,"1,253.25",J & S Security Services
10/12/2020,Local Restrictions Support Grants � Mandatory (COVID-19),Local Restrictions Support Grants (COVID-19),"1,334.00",J S Gardner Ltd
18/12/2020,Local Restrictions Support Grants � Mandatory (COVID-19),Local Restrictions Support Grants (COVID-19),"1,334.00",J S simnett photographers
01/12/2020,Rents,Open Spaces,"2,500.00",J T Leavesley Limited
10/12/2020,Contracted Grounds Maintenance,Open Spaces,"1,265.50",James Coles & Sons (Nurseries)
10/12/2020,"Seeds, Plants and Shrubs",Horticultural Resource Centre,847.50,James Coles & Sons (Nurseries)
27/11/2020,Local Restrictions Support Grants � Mandatory (COVID-19),Local Restrictions Support Grants (COVID-19),"1,334.00",Jewellery specialist ltd
21/12/2020,Local Restrictions Support Grants � Mandatory (COVID-19),Local Restrictions Support Grants (COVID-19),"1,334.00",JMP2000Ltd
21/09/2020,Accommodation Costs - B & B/Hotels,Housing Options - Accommodation,775.00,Johnsons Accomodation Ltd
17/09/2020,Accommodation Costs - B & B/Hotels,Housing Options - Accommodation,"2,170.00",Johnsons Accomodation Ltd
10/10/2020,Accommodation Costs - B & B/Hotels,Housing Options - Accommodation,"2,100.00",Johnsons Accomodation Ltd
28/09/2020,Accommodation Costs - B & B/Hotels,Housing Options - Accommodation,770.00,Johnsons Accomodation Ltd
04/11/2020,Accommodation Costs - B & B/Hotels,Housing Options - Accommodation,980.00,Johnsons Accomodation Ltd
25/11/2020,Local Restrictions Support Grants � Mandatory (COVID-19),Local Restrictions Support Grants (COVID-19),"1,334.00",Johnsons the Floris
04/12/2020,Local Restrictions Support Grants � Mandatory (COVID-19),Local Restrictions Support Grants (COVID-19),"1,334.00",Journeys a la Carte LTD
04/12/2020,Local Restrictions Support Grants � Mandatory (COVID-19),Local Restrictions Support Grants (COVID-19),"1,334.00",Journeys a la Carte LTD
25/11/2020,Local Restrictions Support Grants � Mandatory (COVID-19),Local Restrictions Support Grants (COVID-19),"1,334.00",Jules Hair salon
16/11/2020,Local Restrictions Support Grants � Mandatory (COVID-19),Local Restrictions Support Grants (COVID-19),"1,334.00",JW Holdings
27/11/2020,Local Restrictions Support Grants � Mandatory (COVID-19),Local Restrictions Support Grants (COVID-19),"1,334.00",K & S Hair Studio
23/12/2020,Local Restrictions Support Grants � Mandatory (COVID-19),Local Restrictions Support Grants (COVID-19),"1,334.00",KBT Burton LTD
13/11/2020,"Clothing, Uniforms and Laundry",Compliance and Enforcement Funding (COVID-19),736.95,Keltic
08/09/2020,"Seeds, Plants and Shrubs",Horticultural Resource Centre,500.25,Kernock Park Plants Ltd
30/11/2020,Local Restrictions Support Grants � Mandatory (COVID-19),Local Restrictions Support Grants (COVID-19),"1,334.00",Kingstone Village Hall
23/11/2020,Rents,Coopers Square Car Park - Surface,"3,000.00",Knight Frank LLP
23/11/2020,Local Restrictions Support Grants � Mandatory (COVID-19),Local Restrictions Support Grants (COVID-19),"2,000.00",Ladies Gymn UK LTD
30/09/2020,Consultants,Planning Policy,"1,480.00",Land Use Consultants Ltd
30/09/2020,Consultants,Development Control,"2,997.20",Land Use Consultants Ltd
04/12/2020,Local Restrictions Support Grants � Mandatory (COVID-19),Local Restrictions Support Grants (COVID-19),"1,334.00",Lefglow Ltd t/a Spirit Games
04/12/2020,Local Restrictions Support Grants � Mandatory (COVID-19),Local Restrictions Support Grants (COVID-19),"1,334.00",Lefglow Ltd t/a Spirit Games
23/12/2020,Local Restrictions Support Grants � Mandatory (COVID-19),Local Restrictions Support Grants (COVID-19),"1,334.00",Lifestyle Hair
07/12/2020,Local Restrictions Support Grants � Discretionary (COVID-19),Local Restrictions Support Grants (COVID-19),"2,000.00",Living Heritage Event Hire Services LTD
30/11/2020,Local Restrictions Support Grants � Mandatory (COVID-19),Local Restrictions Support Grants (COVID-19),"1,334.00",lloyds
29/09/2020,Subscriptions,Millers Lane Depot,"1,390.00",Logistics UK
26/11/2020,Vehicle Maintenance Costs,Recycling,933.00,Logistics UK
10/12/2020,Local Restrictions Support Grants � Mandatory (COVID-19),Local Restrictions Support Grants (COVID-19),"1,334.00",Lyn Ashworth Ltd
16/12/2020,Local Restrictions Support Grants � Mandatory (COVID-19),Local Restrictions Support Grants (COVID-19),"1,334.00",Made in Thailand Ltd
11/12/2020,Safer Public Spaces (Covid-19),Re-Opening the High Streets (COVID-19),660.00,MagicWorx
11/12/2020,Safer Public Spaces (Covid-19),Re-Opening the High Streets (COVID-19),"1,390.00",MagicWorx
11/12/2020,Safer Public Spaces (Covid-19),Re-Opening the High Streets (COVID-19),"1,315.00",MagicWorx
19/11/2020,Printing and Stationery,Electoral Services,700.00,Mallina Group
25/11/2020,Local Restrictions Support Grants � Mandatory (COVID-19),Local Restrictions Support Grants (COVID-19),"2,000.00",Manor gold Club (Kingstone) Ltd
20/11/2020,Local Restrictions Support Grants � Mandatory (COVID-19),Local Restrictions Support Grants (COVID-19),"1,334.00",Marchington Village Hall
20/11/2020,Local Restrictions Support Grants � Mandatory (COVID-19),Local Restrictions Support Grants (COVID-19),"1,334.00",Marios HQ
20/11/2020,Local Restrictions Support Grants � Mandatory (COVID-19),Local Restrictions Support Grants (COVID-19),"1,334.00",Market Place Shoe Repairs Ltd
18/12/2020,Local Restrictions Support Grants � Mandatory (COVID-19),Local Restrictions Support Grants (COVID-19),"1,334.00",Market Place Travel Ltd
20/11/2020,Local Restrictions Support Grants � Mandatory (COVID-19),Local Restrictions Support Grants (COVID-19),"1,334.00",MARSH FARM
23/11/2020,Local Restrictions Support Grants � Mandatory (COVID-19),Local Restrictions Support Grants (COVID-19),"2,000.00",MASW limited
27/11/2020,Local Restrictions Support Grants � Mandatory (COVID-19),Local Restrictions Support Grants (COVID-19),"1,334.00",Mayfield Memorial Hall Committee
21/12/2020,Local Restrictions Support Grants � Mandatory (COVID-19),Local Restrictions Support Grants (COVID-19),"3,000.00",McLean restaurants
21/12/2020,Local Restrictions Support Grants � Mandatory (COVID-19),Local Restrictions Support Grants (COVID-19),"3,000.00",McLean restaurants
21/12/2020,Local Restrictions Support Grants � Mandatory (COVID-19),Local Restrictions Support Grants (COVID-19),"3,000.00",McLean Restaurants Ltd
21/12/2020,Local Restrictions Support Grants � Mandatory (COVID-19),Local Restrictions Support Grants (COVID-19),"1,334.00",MEH Interior Design
21/12/2020,Local Restrictions Support Grants � Mandatory (COVID-19),Local Restrictions Support Grants (COVID-19),"2,000.00",MerciaFit Ltd T/A CrossFit Mercia
05/11/2020,Grounds Maintenance,Open Spaces,"1,503.00",Met Office
01/12/2020,Repairs and Maintenance of Car Park Ticket Machines,Car Parks - General,"1,507.50",Metric Group Limited
01/12/2020,Repairs and Maintenance of Car Park Ticket Machines,Car Parks - General,"1,536.00",Metric Group Limited
09/11/2020,Repairs and Maintenance of Car Park Ticket Machines,Car Parks - General,884.80,Metric Group Limited
23/11/2020,Local Restrictions Support Grants � Mandatory (COVID-19),Local Restrictions Support Grants (COVID-19),"3,000.00",Mia Hoar Cross Ltd
21/12/2020,Local Restrictions Support Grants � Mandatory (COVID-19),Local Restrictions Support Grants (COVID-19),"1,334.00",Michaela Breen Hairdressing
10/12/2020,Local Restrictions Support Grants � Mandatory (COVID-19),Local Restrictions Support Grants (COVID-19),"2,000.00",Midco Toys LTD
10/11/2020,Repairs & Maintenance to Buildings,Oldfields Sports Centre,"2,990.17",Midland Fire & Security Services Ltd
10/11/2020,Repairs & Maintenance to Buildings,Oldfields Sports Centre,"1,349.13",Midland Fire & Security Services Ltd
04/12/2020,Local Restrictions Support Grants � Mandatory (COVID-19),Local Restrictions Support Grants (COVID-19),"1,334.00",milestone gyms ltd
04/12/2020,Local Restrictions Support Grants � Mandatory (COVID-19),Local Restrictions Support Grants (COVID-19),"1,334.00",milestone gyms ltd
21/12/2020,Local Restrictions Support Grants � Mandatory (COVID-19),Local Restrictions Support Grants (COVID-19),"1,334.00",Mimi Spa Ltd
16/12/2020,Local Restrictions Support Grants � Discretionary (COVID-19),Local Restrictions Support Grants (COVID-19),"1,334.00",MOBILE TECH INTL LTD
20/11/2020,Local Restrictions Support Grants � Mandatory (COVID-19),Local Restrictions Support Grants (COVID-19),"1,334.00",mobilestyle UK Trading Ltd
30/09/2020,Taxi Panels,Licensing,"2,926.00",Mogo Uk
30/11/2020,Local Restrictions Support Grants � Mandatory (COVID-19),Local Restrictions Support Grants (COVID-19),"1,334.00",Monroe Hair
18/12/2020,Local Restrictions Support Grants � Mandatory (COVID-19),Local Restrictions Support Grants (COVID-19),"1,334.00",murooj salon LTD T/A murooj hair and beauty
29/09/2020,Section 50 Burials,Environmental Health,"1,020.00",Murray's Independent Funeral Directors
25/11/2020,Local Restrictions Support Grants � Mandatory (COVID-19),Local Restrictions Support Grants (COVID-19),"1,334.00",My Uniform
26/11/2020,Direct Purchases,Street Cleaning,"1,379.32",N A Brown Ltd
23/10/2020,Direct Purchases,Street Cleaning,"1,428.88",N A Brown Ltd
10/12/2020,Local Restrictions Support Grants � Mandatory (COVID-19),Local Restrictions Support Grants (COVID-19),"1,334.00",Nabb Lane Woods Ltd
30/11/2020,Local Restrictions Support Grants � Mandatory (COVID-19),Local Restrictions Support Grants (COVID-19),"1,334.00",Newstart
30/11/2020,Local Restrictions Support Grants � Mandatory (COVID-19),Local Restrictions Support Grants (COVID-19),"1,334.00",Newstart
30/11/2020,Local Restrictions Support Grants � Mandatory (COVID-19),Local Restrictions Support Grants (COVID-19),"1,334.00",Newstart
10/12/2020,Other Homeless Prevention,Housing Options,"1,152.00",Newton Fallowell Swadlincote
25/11/2020,Local Restrictions Support Grants � Mandatory (COVID-19),Local Restrictions Support Grants (COVID-19),"1,334.00",No.42 Interiors Limited
30/10/2020,Direct Purchases,Millers Lane Depot,"2,104.16",Nobisco Limited
30/11/2020,Temporary Staff Costs,Housing Benefits Admin,"1,440.00",Northgate Public Services (Uk) Ltd
30/10/2020,Temporary Staff Costs,Housing Benefits Admin,"1,280.00",Northgate Public Services (Uk) Ltd
30/09/2020,Temporary Staff Costs,Housing Benefits Admin,"1,760.00",Northgate Public Services (Uk) Ltd
16/12/2020,Local Restrictions Support Grants � Mandatory (COVID-19),Local Restrictions Support Grants (COVID-19),"1,334.00",Nouveau Nails Ltd
13/10/2020,Contract Payments,ICT,"4,810.00",Nowcomm Ltd
13/10/2020,Contract Payments,ICT,"2,700.00",Nowcomm Ltd
21/12/2020,Local Restrictions Support Grants � Mandatory (COVID-19),Local Restrictions Support Grants (COVID-19),"2,000.00",NSKD LTD
27/11/2020,Local Restrictions Support Grants � Mandatory (COVID-19),Local Restrictions Support Grants (COVID-19),"1,334.00",Old Chapel Antiques
23/12/2020,Local Restrictions Support Grants � Mandatory (COVID-19),Local Restrictions Support Grants (COVID-19),"1,334.00",Oldfields Sports and Social Club
21/12/2020,Local Restrictions Support Grants � Mandatory (COVID-19),Local Restrictions Support Grants (COVID-19),"1,334.00",Oldroyd Guest House (2009) Ltd
30/11/2020,Local Restrictions Support Grants � Mandatory (COVID-19),Local Restrictions Support Grants (COVID-19),"1,334.00",OLED Phones LTD
25/11/2020,Local Restrictions Support Grants � Mandatory (COVID-19),Local Restrictions Support Grants (COVID-19),"1,334.00",Olive Tree Guest House Limited
25/11/2020,Local Restrictions Support Grants � Mandatory (COVID-19),Local Restrictions Support Grants (COVID-19),"1,334.00",Opulence Beauty Ltd
02/12/2020,Local Restrictions Support Grants � Mandatory (COVID-19),Local Restrictions Support Grants (COVID-19),"1,334.00",Orchard Barn & Anvil Cottage
02/12/2020,Local Restrictions Support Grants � Mandatory (COVID-19),Local Restrictions Support Grants (COVID-19),"3,000.00",Outlook Menswear Ltd
18/12/2020,Local Restrictions Support Grants � Mandatory (COVID-19),Local Restrictions Support Grants (COVID-19),"1,334.00",pal motors
18/12/2020,Local Restrictions Support Grants � Mandatory (COVID-19),Local Restrictions Support Grants (COVID-19),"1,334.00",Panakeia Indian Rocester Ltd
02/12/2020,Local Restrictions Support Grants � Mandatory (COVID-19),Local Restrictions Support Grants (COVID-19),"1,334.00",Park Life Leisure Limited
16/12/2020,Local Restrictions Support Grants � Mandatory (COVID-19),Local Restrictions Support Grants (COVID-19),"2,000.00",Pascal at the Old Vicarage Limited
21/12/2020,Local Restrictions Support Grants � Mandatory (COVID-19),Local Restrictions Support Grants (COVID-19),"1,334.00",Pauls Caf� Ltd
31/10/2020,Repairs and Maintenance of Car Park Ticket Machines,Car Parks - General,522.57,PayByPhone Limited
10/12/2020,Local Restrictions Support Grants � Mandatory (COVID-19),Local Restrictions Support Grants (COVID-19),"2,000.00",PBM Inspection Services Ltd- Number 2 account
18/12/2020,Local Restrictions Support Grants � Mandatory (COVID-19),Local Restrictions Support Grants (COVID-19),"1,334.00",Peake�s Retreats
07/12/2020,Local Restrictions Support Grants � Discretionary (COVID-19),Local Restrictions Support Grants (COVID-19),"1,334.00",PERFECT VIRTUAL LIMITED
18/12/2020,Local Restrictions Support Grants � Mandatory (COVID-19),Local Restrictions Support Grants (COVID-19),"1,334.00",Permier Mobility (Burton) Ltd
30/10/2020,Promotional Materials,Recycling,"1,425.00",PermiServ Limited
25/11/2020,Local Restrictions Support Grants � Mandatory (COVID-19),Local Restrictions Support Grants (COVID-19),"2,000.00",Pete Oakley Music
30/11/2020,Departmental Postages,Business Rate Collection,805.29,PHD Mail Ltd
30/11/2020,Departmental Postages,Council Tax Collection,599.07,PHD Mail Ltd
11/09/2020,Departmental Postages,Council Tax Collection,777.81,PHD Mail Ltd
22/10/2020,Departmental Postages,Council Tax Collection,540.06,PHD Mail Ltd
31/10/2020,Departmental Postages,Council Tax Collection,"2,300.90",PHD Mail Ltd
31/10/2020,Departmental Postages,Council Tax Collection,"38,831.08",PHD Mail Ltd
09/11/2020,Departmental Postages,Council Tax Collection,753.83,PHD Mail Ltd
23/11/2020,Maintenance Contracts,Public Conveniences,"2,562.12",PHS Group Plc
24/10/2020,Waste & Litter Disposal,Burton Retail Market,521.30,PHS Group Plc
24/10/2020,Maintenance Contracts,Facilities Management,503.24,PHS Group Plc
18/12/2020,Local Restrictions Support Grants � Mandatory (COVID-19),Local Restrictions Support Grants (COVID-19),"1,334.00",Pickle Pot
16/12/2020,Local Restrictions Support Grants � Mandatory (COVID-19),Local Restrictions Support Grants (COVID-19),"1,334.00",Pickled Ginger Pub Co LTD
30/11/2020,Local Restrictions Support Grants � Mandatory (COVID-19),Local Restrictions Support Grants (COVID-19),"2,000.00",Pinocchios Limited
20/11/2020,Local Restrictions Support Grants � Mandatory (COVID-19),Local Restrictions Support Grants (COVID-19),"1,334.00",Pitstop Barber
30/11/2020,Local Restrictions Support Grants � Mandatory (COVID-19),Local Restrictions Support Grants (COVID-19),"1,334.00",Polly Hodge Hair and Beauty Ltd
02/12/2020,Local Restrictions Support Grants � Mandatory (COVID-19),Local Restrictions Support Grants (COVID-19),"1,334.00",Poppies Hairdressing
14/12/2020,Contract Payments,Enterprise,"2,028.00",PortalPlanQuest Ltd
05/09/2020,Repairs & Maintenance to Buildings,Facilities Management,"2,640.00",Power Continuity Systems
06/11/2020,DFG Contractor Payments,Housing Standards,564.00,Premiere Healthcare Ltd
06/11/2020,DFG Contractor Payments,Housing Standards,"1,305.00",Premiere Healthcare Ltd
30/10/2020,Consultants,Cemeteries,"1,650.00",Professional Sportsturf Design (North West) Ltd
24/11/2020,Play Equipment,Open Spaces,"2,273.22",Proludic Ltd
09/10/2020,Maintenance Agreements,Committee Support,850.00,Public i
22/09/2020,Franking Machine Postages,Central Reprographics,"5,052.02",Purchase Power
07/12/2020,Local Restrictions Support Grants � Mandatory (COVID-19),Local Restrictions Support Grants (COVID-19),"1,334.00",Rangemore Club
06/12/2020,Advertising,Development Control,530.84,Reach Publishing Services Ltd
15/11/2020,Advertising,Development Control,530.84,Reach Publishing Services Ltd
11/10/2020,Advertising,Development Control,507.64,Reach Publishing Services Ltd
16/12/2020,Local Restrictions Support Grants � Mandatory (COVID-19),Local Restrictions Support Grants (COVID-19),"1,334.00",Red Lion (WHG) Ltd
21/12/2020,Local Restrictions Support Grants � Mandatory (COVID-19),Local Restrictions Support Grants (COVID-19),"3,000.00",REDML Hotel Ltd
30/10/2020,Direct Purchases,Recycling,"1,536.00",Reflex Print & Design
01/10/2020,Software Licenses & Contracts,Building Consultancy Chargeable Activities,845.00,Resolution Data Management Ltd
10/12/2020,Local Restrictions Support Grants � Discretionary (COVID-19),Local Restrictions Support Grants (COVID-19),"2,000.00",Response Multimedia
02/12/2020,Local Restrictions Support Grants � Mandatory (COVID-19),Local Restrictions Support Grants (COVID-19),"2,000.00",Revolve Clothing Ltd
18/12/2020,Local Restrictions Support Grants � Mandatory (COVID-19),Local Restrictions Support Grants (COVID-19),"1,334.00",RGL SALONS LTD
21/10/2020,Consultants,Environmental Health,668.50,RH Environmental Ltd
19/10/2020,Consultants,Environmental Health,"2,081.50",RH Environmental Ltd
13/10/2020,Safer Public Spaces (Covid-19),Re-Opening the High Streets (COVID-19),"1,585.00",Rhona Pond Productions
20/11/2020,Local Restrictions Support Grants � Mandatory (COVID-19),Local Restrictions Support Grants (COVID-19),"1,334.00",Rice and Sons Ltd t/The Key Shop
20/11/2020,Local Restrictions Support Grants � Mandatory (COVID-19),Local Restrictions Support Grants (COVID-19),"2,000.00",Riverside Car sales Ltd
30/11/2020,Local Restrictions Support Grants � Mandatory (COVID-19),Local Restrictions Support Grants (COVID-19),"1,334.00",Rolleston Club
27/11/2020,Local Restrictions Support Grants � Mandatory (COVID-19),Local Restrictions Support Grants (COVID-19),"1,334.00",Rolleston Cricket Club
25/11/2020,Local Restrictions Support Grants � Mandatory (COVID-19),Local Restrictions Support Grants (COVID-19),"2,000.00",Roseacre Pub Company Ltd
25/11/2020,Local Restrictions Support Grants � Mandatory (COVID-19),Local Restrictions Support Grants (COVID-19),"2,000.00",Rosemary Stinchcombe Coach and Horses
18/12/2020,Local Restrictions Support Grants � Mandatory (COVID-19),Local Restrictions Support Grants (COVID-19),"1,334.00",Rough Hayes Community centre
02/10/2020,Consultants,Development Control,575.00,RSK ADAS Ltd
01/11/2020,Consultants,Development Control,575.00,RSK ADAS Ltd
02/10/2020,Consultants,Development Control,575.00,RSK ADAS Ltd
02/10/2020,Consultants,Development Control,575.00,RSK ADAS Ltd
01/11/2020,Consultants,Development Control,575.00,RSK ADAS Ltd
30/09/2020,Consultants,Asset Management,720.00,Rushton Hickman Partnership
01/10/2020,Consultants,Asset Management,595.00,Rushton Hickman Partnership
30/11/2020,Local Restrictions Support Grants � Mandatory (COVID-19),Local Restrictions Support Grants (COVID-19),"1,334.00",S V M Jewelery LTD
07/12/2020,Local Restrictions Support Grants � Mandatory (COVID-19),Local Restrictions Support Grants (COVID-19),"1,334.00",Sabaidee Thai Massage Ltd
07/10/2020,Play Equipment,Open Spaces,840.00,Safeplay Surfacing Ltd
07/09/2020,Play Equipment,Open Spaces,560.00,Safeplay Surfacing Ltd
17/11/2020,Growth Point Work,New Growth Points,"1,250.00",Salloway Property Consultants
25/11/2020,Local Restrictions Support Grants � Mandatory (COVID-19),Local Restrictions Support Grants (COVID-19),"1,334.00",Salon 53a
20/11/2020,Local Restrictions Support Grants � Mandatory (COVID-19),Local Restrictions Support Grants (COVID-19),"3,000.00",Sapphire n Beauty Ltd
10/09/2020,Growth Point Work,New Growth Points,"4,387.50",Savills (UK) Limited
21/12/2020,Local Restrictions Support Grants � Mandatory (COVID-19),Local Restrictions Support Grants (COVID-19),"1,334.00",scent:detect:find:ltd
18/12/2020,Local Restrictions Support Grants � Mandatory (COVID-19),Local Restrictions Support Grants (COVID-19),"1,334.00",Secret Garden Limited
30/09/2020,Cash Collection Security Services,Car Parks - General,"3,219.27",Security Plus + Limited
31/10/2020,Cash Collection Security Services,Car Parks - General,"3,083.31",Security Plus + Limited
30/11/2020,Cash Collection Security Services,Car Parks - General,"2,879.37",Security Plus + Limited
16/12/2020,Local Restrictions Support Grants � Discretionary (COVID-19),Local Restrictions Support Grants (COVID-19),"1,334.00",SELECT MUSIC LTD
10/12/2020,Local Restrictions Support Grants � Discretionary (COVID-19),Local Restrictions Support Grants (COVID-19),"1,334.00",SELECT SPORTING & CELEBRITY SPEAKERS LTD
20/11/2020,Local Restrictions Support Grants � Mandatory (COVID-19),Local Restrictions Support Grants (COVID-19),"1,334.00",SJP Cosmetics
20/11/2020,Local Restrictions Support Grants � Mandatory (COVID-19),Local Restrictions Support Grants (COVID-19),"1,334.00",Slick
23/12/2020,Local Restrictions Support Grants � Mandatory (COVID-19),Local Restrictions Support Grants (COVID-19),"1,334.00",Smart Bookings Limited
02/12/2020,Local Restrictions Support Grants � Mandatory (COVID-19),Local Restrictions Support Grants (COVID-19),"1,334.00",Smithfield Carpets Ltd
14/09/2020,Advertising,Cultural Services Marketing,"1,024.00",SocialSignin Ltd
18/12/2020,Local Restrictions Support Grants � Mandatory (COVID-19),Local Restrictions Support Grants (COVID-19),"2,000.00",Solid Facilites Management Ltd
30/11/2020,Local Restrictions Support Grants � Mandatory (COVID-19),Local Restrictions Support Grants (COVID-19),"1,334.00",soundlighting uk ltd
23/12/2019,Water Services,Public Conveniences,"4,568.78",South Staffordshire Water Business
09/06/2020,Water Services,Public Conveniences,"1,851.02",South Staffordshire Water Business
16/10/2020,Third Party Payments,Internal Audit,"14,831.25",South Warwickshire NHS Foundation Trust
10/12/2020,Local Restrictions Support Grants � Mandatory (COVID-19),Local Restrictions Support Grants (COVID-19),"2,000.00",Sparena The New Generation Ltd
03/11/2020,Parking Charges Income,Meadowside Leisure Centre Car Park,"6,761.51",Sports & Leisure Management Ltd
07/10/2020,Parking Charges Income,Meadowside Leisure Centre Car Park,"4,424.79",Sports & Leisure Management Ltd
05/10/2020,Parking Charges Income,Meadowside Leisure Centre Car Park,"9,003.60",Sports & Leisure Management Ltd
07/10/2020,Parking Charges Income,Meadowside Leisure Centre Car Park,"7,503.20",Sports & Leisure Management Ltd
07/12/2020,Parking Charges Income,Meadowside Leisure Centre Car Park,834.52,Sports & Leisure Management Ltd
03/11/2020,Parking Charges Income,Uttoxeter Leisure Centre Car Park,"2,968.41",Sports & Leisure Management Ltd
07/10/2020,Parking Charges Income,Uttoxeter Leisure Centre Car Park,"1,323.70",Sports & Leisure Management Ltd
05/10/2020,Parking Charges Income,Uttoxeter Leisure Centre Car Park,"3,089.80",Sports & Leisure Management Ltd
07/10/2020,Parking Charges Income,Uttoxeter Leisure Centre Car Park,"2,574.90",Sports & Leisure Management Ltd
03/11/2020,Fire Insurance,Leisure Management,"1,305.53",Sports & Leisure Management Ltd
14/09/2020,Third Party Payments,Leisure Management,965.70,Sports & Leisure Management Ltd
27/11/2020,Local Restrictions Support Grants � Mandatory (COVID-19),Local Restrictions Support Grants (COVID-19),"1,334.00",Stafford district scout council-wardens
27/10/2020,Consultants,Planning Policy,"5,085.08",Staffordshire County Council
16/11/2020,Consultants,Development Control,"1,500.00",Staffordshire County Council
22/09/2020,Contract Payments,Town Centre Regeneration,"1,493.58",Staffordshire County Council
22/09/2020,Contract Payments,Town Centre Regeneration,"132,092.31",Staffordshire County Council
15/10/2020,Contract Payments,Town Centre Regeneration,"1,648.17",Staffordshire County Council
15/10/2020,Contract Payments,Town Centre Regeneration,"17,335.73",Staffordshire County Council
15/10/2020,Acquisition of Equipment,Town Centre Regeneration,"1,456.19",Staffordshire County Council
22/09/2020,Acquisition of Equipment,Town Centre Regeneration,"5,941.90",Staffordshire County Council
22/09/2020,Consultants Fees,Town Centre Regeneration,"5,275.14",Staffordshire County Council
15/10/2020,Consultants Fees,Town Centre Regeneration,829.16,Staffordshire County Council
15/10/2020,Consultants Fees,Town Centre Regeneration,"33,712.51",Staffordshire County Council
01/11/2020,Third Party Payments,Trade Waste Recycling,"9,465.39",Staffordshire County Council
21/12/2020,Local Restrictions Support Grants � Mandatory (COVID-19),Local Restrictions Support Grants (COVID-19),"2,000.00",Staffordshire Winter Sports Club Ltd
10/12/2020,Local Restrictions Support Grants � Mandatory (COVID-19),Local Restrictions Support Grants (COVID-19),"1,334.00",Stans Textiles Ltd T/A Cash4Clothes4You
09/11/2020,Parish LCTS Grant,Corporate Items,905.00,Stapenhill Parish Council
09/11/2020,Parish Precept Payments,Parish Council Precepts,"9,161.20",Stapenhill Parish Council
23/12/2020,Local Restrictions Support Grants � Mandatory (COVID-19),Local Restrictions Support Grants (COVID-19),"2,000.00",Star
10/12/2020,Local Restrictions Support Grants � Mandatory (COVID-19),Local Restrictions Support Grants (COVID-19),"2,000.00",Stowford Pub Company Ltd
30/11/2020,Local Restrictions Support Grants � Mandatory (COVID-19),Local Restrictions Support Grants (COVID-19),"1,334.00",Stramshall Village Hall Registered Charity
02/12/2020,Local Restrictions Support Grants � Mandatory (COVID-19),Local Restrictions Support Grants (COVID-19),"1,334.00",Stretton Bowls Club
21/12/2020,Local Restrictions Support Grants � Mandatory (COVID-19),Local Restrictions Support Grants (COVID-19),"1,334.00",Stretton Social Club Ltd
23/10/2020,Consultants,Miscellaneous Properties,"3,300.00",Structural Design Associates
25/11/2020,Local Restrictions Support Grants � Mandatory (COVID-19),Local Restrictions Support Grants (COVID-19),"1,334.00",Stuart Mobility Limited
25/11/2020,Local Restrictions Support Grants � Mandatory (COVID-19),Local Restrictions Support Grants (COVID-19),"1,334.00",Summerhouse Bakery
25/11/2020,Local Restrictions Support Grants � Mandatory (COVID-19),Local Restrictions Support Grants (COVID-19),"1,334.00",Summerhouse cake and tea shop limited
25/11/2020,Local Restrictions Support Grants � Mandatory (COVID-19),Local Restrictions Support Grants (COVID-19),"1,334.00",Summerhouse kitchen limited
01/12/2020,Safer Public Spaces (Covid-19),Re-Opening the High Streets (COVID-19),"3,990.00",Sunflower Media Ltd
02/12/2020,Local Restrictions Support Grants � Mandatory (COVID-19),Local Restrictions Support Grants (COVID-19),"1,334.00",Sunkissed Beauty Ltd
21/12/2020,Local Restrictions Support Grants � Mandatory (COVID-19),Local Restrictions Support Grants (COVID-19),"1,334.00",Sunny Dees Tanning Studio
23/12/2020,Local Restrictions Support Grants � Mandatory (COVID-19),Local Restrictions Support Grants (COVID-19),"1,334.00",Supers of Birmingham Ltd
16/12/2020,Local Restrictions Support Grants � Mandatory (COVID-19),Local Restrictions Support Grants (COVID-19),"3,000.00",Sutton Park Motor Company Ltd
30/11/2020,Local Restrictions Support Grants � Mandatory (COVID-19),Local Restrictions Support Grants (COVID-19),"1,334.00",SVM Jewellery Ltd
02/12/2020,Local Restrictions Support Grants � Mandatory (COVID-19),Local Restrictions Support Grants (COVID-19),"3,000.00",Sylvester Fun Gym LTD
15/10/2020,Promotional Materials,Recycling,"3,495.00",Synergy Print Management Services
21/12/2020,Local Restrictions Support Grants � Mandatory (COVID-19),Local Restrictions Support Grants (COVID-19),"1,334.00",T P Associates/The Hair and Beauty Boutique
20/11/2020,Local Restrictions Support Grants � Mandatory (COVID-19),Local Restrictions Support Grants (COVID-19),"3,000.00",Tabella House Cafes Ltd
21/12/2020,Local Restrictions Support Grants � Mandatory (COVID-19),Local Restrictions Support Grants (COVID-19),"1,334.00",Tag Sports & Promotional Clothing Ltd
11/11/2020,Consultants,Development Control,"2,636.62",Tamworth Borough Council
17/09/2020,Consultants,Development Control,"1,098.28",Tamworth Borough Council
20/11/2020,Local Restrictions Support Grants � Mandatory (COVID-19),Local Restrictions Support Grants (COVID-19),"1,334.00",Tatenhill Thanksgiving & Memorial Hall
20/11/2020,Local Restrictions Support Grants � Mandatory (COVID-19),Local Restrictions Support Grants (COVID-19),"1,334.00",Teapot Caf� Limited
12/10/2020,Direct Purchases,DSO Stores Account,760.00,Tennants Distribution Ltd
27/11/2020,Local Restrictions Support Grants � Mandatory (COVID-19),Local Restrictions Support Grants (COVID-19),"1,334.00",Terry Bushell Travel
23/12/2020,Local Restrictions Support Grants � Mandatory (COVID-19),Local Restrictions Support Grants (COVID-19),"3,000.00",The Albion Football Club (BOT) Ltd
16/12/2020,Local Restrictions Support Grants � Mandatory (COVID-19),Local Restrictions Support Grants (COVID-19),"2,000.00",the Anchor Inn (Burton) Ltd
25/11/2020,Local Restrictions Support Grants � Mandatory (COVID-19),Local Restrictions Support Grants (COVID-19),"1,334.00",The Barley Mow
27/11/2020,Local Restrictions Support Grants � Mandatory (COVID-19),Local Restrictions Support Grants (COVID-19),"2,000.00",The Barn
27/11/2020,Local Restrictions Support Grants � Mandatory (COVID-19),Local Restrictions Support Grants (COVID-19),"1,334.00",The Beauty Botique Barton Ltd
10/12/2020,Local Restrictions Support Grants � Mandatory (COVID-19),Local Restrictions Support Grants (COVID-19),"2,000.00",The Bell Inn
27/11/2020,Local Restrictions Support Grants � Mandatory (COVID-19),Local Restrictions Support Grants (COVID-19),"3,000.00",The Boars Head Hotel LTD
20/11/2020,Local Restrictions Support Grants � Mandatory (COVID-19),Local Restrictions Support Grants (COVID-19),"1,334.00",The Bridal Rooms Ltd
10/12/2020,Local Restrictions Support Grants � Mandatory (COVID-19),Local Restrictions Support Grants (COVID-19),"1,334.00",The Brotherhood Curios Ltd
27/11/2020,Local Restrictions Support Grants � Mandatory (COVID-19),Local Restrictions Support Grants (COVID-19),"1,334.00",The Bulls Head
23/12/2020,Local Restrictions Support Grants � Mandatory (COVID-19),Local Restrictions Support Grants (COVID-19),"1,334.00",The car buyer UK
30/11/2020,Local Restrictions Support Grants � Mandatory (COVID-19),Local Restrictions Support Grants (COVID-19),"2,000.00",The Carpet Stop Derby Ltd
27/11/2020,Local Restrictions Support Grants � Mandatory (COVID-19),Local Restrictions Support Grants (COVID-19),"2,000.00",The claymills Pumping Engines Trust Ltd
23/12/2020,Local Restrictions Support Grants � Mandatory (COVID-19),Local Restrictions Support Grants (COVID-19),"2,000.00",THE COCK INN (HANBURY) LTD
14/10/2020,Software Licenses & Contracts,Legal Services,759.00,The Copyright Licensing Agency
07/12/2020,Local Restrictions Support Grants � Mandatory (COVID-19),Local Restrictions Support Grants (COVID-19),"3,000.00",The Crossing Burton Ltd
23/11/2020,Local Restrictions Support Grants � Mandatory (COVID-19),Local Restrictions Support Grants (COVID-19),"2,000.00",The Devonshire Arms Burton Ltd
23/12/2020,Local Restrictions Support Grants � Mandatory (COVID-19),Local Restrictions Support Grants (COVID-19),"3,000.00",The Duncombe Arms Ltd
25/11/2020,Local Restrictions Support Grants � Mandatory (COVID-19),Local Restrictions Support Grants (COVID-19),"1,334.00",The Florist & Wholesaler Ltd
29/10/2020,Wasps Expenditure,Councillors Community Fund,"1,000.00",The Globe Group CIC
18/12/2020,Local Restrictions Support Grants � Mandatory (COVID-19),Local Restrictions Support Grants (COVID-19),"2,000.00",The Golden Cup
02/12/2020,Local Restrictions Support Grants � Mandatory (COVID-19),Local Restrictions Support Grants (COVID-19),"1,334.00",The Granary
04/12/2020,Local Restrictions Support Grants � Mandatory (COVID-19),Local Restrictions Support Grants (COVID-19),"1,334.00",The Great Northern Public House
04/12/2020,Local Restrictions Support Grants � Mandatory (COVID-19),Local Restrictions Support Grants (COVID-19),"1,334.00",The Great Northern Public House
10/12/2020,Local Restrictions Support Grants � Mandatory (COVID-19),Local Restrictions Support Grants (COVID-19),"1,334.00",The Guild Hair and Beauty
16/12/2020,Local Restrictions Support Grants � Mandatory (COVID-19),Local Restrictions Support Grants (COVID-19),"1,334.00",The Hanbury Arms
18/12/2020,Local Restrictions Support Grants � Mandatory (COVID-19),Local Restrictions Support Grants (COVID-19),"1,334.00",The Hideaway Burton Ltd
04/12/2020,Rents,Coopers Square Car Park - Surface,"5,205.39",The Hollins Murray Group Limited
02/12/2020,Local Restrictions Support Grants � Mandatory (COVID-19),Local Restrictions Support Grants (COVID-19),"1,334.00",The Kandy Factory Ltd
27/11/2020,Local Restrictions Support Grants � Mandatory (COVID-19),Local Restrictions Support Grants (COVID-19),"1,334.00",The Loft at Mays Beauty
20/11/2020,Local Restrictions Support Grants � Mandatory (COVID-19),Local Restrictions Support Grants (COVID-19),"1,334.00",The Mens Room
23/11/2020,Local Restrictions Support Grants � Mandatory (COVID-19),Local Restrictions Support Grants (COVID-19),"2,000.00",The Monks Bridge
18/09/2020,Contributions to Other Bodies,Enterprise,"9,000.00",The National Forest Company
18/12/2020,Local Restrictions Support Grants � Mandatory (COVID-19),Local Restrictions Support Grants (COVID-19),"1,334.00",The Needwood Jubilee Hall Committee
25/11/2020,Local Restrictions Support Grants � Mandatory (COVID-19),Local Restrictions Support Grants (COVID-19),"1,334.00",The Post bar & Lounge Ltd
30/11/2020,Local Restrictions Support Grants � Mandatory (COVID-19),Local Restrictions Support Grants (COVID-19),"2,000.00",The Red Carpet Cinema LTD
20/11/2020,Local Restrictions Support Grants � Mandatory (COVID-19),Local Restrictions Support Grants (COVID-19),"1,334.00",The Roebuck (Draycott) Ltd
18/12/2020,Local Restrictions Support Grants � Mandatory (COVID-19),Local Restrictions Support Grants (COVID-19),"1,334.00",The Rustee Skate Shack
23/11/2020,Local Restrictions Support Grants � Mandatory (COVID-19),Local Restrictions Support Grants (COVID-19),"1,334.00",The Sanctuary h&b Ltd
16/12/2020,Local Restrictions Support Grants � Discretionary (COVID-19),Local Restrictions Support Grants (COVID-19),"1,334.00",The Sandwich Shop LTD
23/11/2020,Local Restrictions Support Grants � Mandatory (COVID-19),Local Restrictions Support Grants (COVID-19),"2,000.00",The Saxon Pub Company
16/12/2020,Local Restrictions Support Grants � Mandatory (COVID-19),Local Restrictions Support Grants (COVID-19),"1,334.00",The Shrew (Staffordshire) Ltd
23/12/2020,Local Restrictions Support Grants � Mandatory (COVID-19),Local Restrictions Support Grants (COVID-19),"1,334.00",THE STEEPLECHASE UTT
21/12/2020,Local Restrictions Support Grants � Mandatory (COVID-19),Local Restrictions Support Grants (COVID-19),"2,000.00",The Sump
10/12/2020,Local Restrictions Support Grants � Mandatory (COVID-19),Local Restrictions Support Grants (COVID-19),"2,000.00",The Trading Station Long Eaton Ltd
25/11/2020,Local Restrictions Support Grants � Mandatory (COVID-19),Local Restrictions Support Grants (COVID-19),"2,000.00",The Uttoxeter Golf Club
07/12/2020,Local Restrictions Support Grants � Mandatory (COVID-19),Local Restrictions Support Grants (COVID-19),"2,000.00",The Washlands Sports Club Ltd
04/12/2020,Local Restrictions Support Grants � Mandatory (COVID-19),Local Restrictions Support Grants (COVID-19),"1,334.00",The Watch Hospital Ltd
04/12/2020,Local Restrictions Support Grants � Mandatory (COVID-19),Local Restrictions Support Grants (COVID-19),"1,334.00",The Watch Hospital Ltd
23/11/2020,Local Restrictions Support Grants � Mandatory (COVID-19),Local Restrictions Support Grants (COVID-19),"1,334.00",The Willow Holiday Let
07/12/2020,Local Restrictions Support Grants � Mandatory (COVID-19),Local Restrictions Support Grants (COVID-19),"3,000.00",The Winery Ltd
16/09/2020,Other Homeless Prevention,Housing Options,586.74,Theam Security Ltd
23/11/2020,Other Homeless Prevention,Housing Options,"1,069.76",Theam Security Ltd
18/12/2020,Local Restrictions Support Grants � Mandatory (COVID-19),Local Restrictions Support Grants (COVID-19),"1,334.00",tiger jack LTD
18/12/2020,Local Restrictions Support Grants � Mandatory (COVID-19),Local Restrictions Support Grants (COVID-19),"2,000.00",TJR (Burton) Ltd
21/12/2020,Local Restrictions Support Grants � Mandatory (COVID-19),Local Restrictions Support Grants (COVID-19),"1,334.00",TLZ HAIR DESIGN
23/12/2020,Local Restrictions Support Grants � Mandatory (COVID-19),Local Restrictions Support Grants (COVID-19),"1,334.00",Tom Boden Memorial Sports Trust
04/12/2020,Local Restrictions Support Grants � Mandatory (COVID-19),Local Restrictions Support Grants (COVID-19),"2,000.00",Top Furniture Ltd
04/12/2020,Local Restrictions Support Grants � Mandatory (COVID-19),Local Restrictions Support Grants (COVID-19),"2,000.00",Top Furniture Ltd
14/11/2020,Electricity,Brewhouse Arts Centre,561.20,Total Gas & Power
15/12/2020,Electricity,Brewhouse Arts Centre,531.75,Total Gas & Power
15/12/2020,Electricity,Burton Retail Market,"1,834.36",Total Gas & Power
14/11/2020,Electricity,Burton Retail Market,"2,644.81",Total Gas & Power
10/10/2020,Electricity,Burton Retail Market,"2,113.99",Total Gas & Power
14/11/2020,Electricity,Facilities Management,"2,572.49",Total Gas & Power
10/10/2020,Electricity,Facilities Management,"1,845.82",Total Gas & Power
15/12/2020,Electricity,Facilities Management,"2,406.10",Total Gas & Power
17/11/2020,Maintenance Agreements,Closed Circuit Cameras,"3,131.40",Total Integrated Solutions Ltd
01/10/2020,Maintenance Agreements,Closed Circuit Cameras,"1,334.58",Total Integrated Solutions Ltd
30/09/2020,Accommodation Costs (Covid19),Housing Options - Accommodation,"1,350.00",TQ Hotels Ltd
12/10/2020,Accommodation Costs (Covid19),Housing Options - Accommodation,"1,710.00",TQ Hotels Ltd
30/09/2020,Accommodation Costs (Covid19),Housing Options - Accommodation,720.00,TQ Hotels Ltd
30/09/2020,Accommodation Costs (Covid19),Housing Options - Accommodation,630.00,TQ Hotels Ltd
30/09/2020,Accommodation Costs (Covid19),Housing Options - Accommodation,585.00,TQ Hotels Ltd
30/09/2020,Accommodation Costs (Covid19),Housing Options - Accommodation,"1,350.00",TQ Hotels Ltd
01/11/2020,Accommodation Costs - B & B/Hotels,Housing Options - Accommodation,"1,395.00",TQ Hotels Ltd
01/11/2020,Accommodation Costs - B & B/Hotels,Housing Options - Accommodation,935.00,TQ Hotels Ltd
01/11/2020,Accommodation Costs - B & B/Hotels,Housing Options - Accommodation,"1,125.00",TQ Hotels Ltd
01/11/2020,Accommodation Costs - B & B/Hotels,Housing Options - Accommodation,855.00,TQ Hotels Ltd
01/11/2020,Accommodation Costs - B & B/Hotels,Next Steps Accommodation Programme (NSAP),"1,125.00",TQ Hotels Ltd
01/11/2020,Accommodation Costs - B & B/Hotels,Next Steps Accommodation Programme (NSAP),"1,395.00",TQ Hotels Ltd
01/11/2020,Accommodation Costs - B & B/Hotels,Next Steps Accommodation Programme (NSAP),"1,080.00",TQ Hotels Ltd
01/11/2020,Accommodation Costs - B & B/Hotels,Next Steps Accommodation Programme (NSAP),540.00,TQ Hotels Ltd
01/11/2020,Accommodation Costs - B & B/Hotels,Next Steps Accommodation Programme (NSAP),810.00,TQ Hotels Ltd
01/11/2020,Accommodation Costs - B & B/Hotels,Next Steps Accommodation Programme (NSAP),"1,305.00",TQ Hotels Ltd
01/11/2020,Accommodation Costs - B & B/Hotels,Next Steps Accommodation Programme (NSAP),"1,260.00",TQ Hotels Ltd
01/11/2020,Accommodation Costs - B & B/Hotels,Next Steps Accommodation Programme (NSAP),"1,395.00",TQ Hotels Ltd
01/11/2020,Accommodation Costs - B & B/Hotels,Next Steps Accommodation Programme (NSAP),720.00,TQ Hotels Ltd
01/11/2020,Accommodation Costs - B & B/Hotels,Next Steps Accommodation Programme (NSAP),585.00,TQ Hotels Ltd
25/11/2020,Local Restrictions Support Grants � Mandatory (COVID-19),Local Restrictions Support Grants (COVID-19),"1,334.00",Tracy Lea Weddings
18/12/2020,Local Restrictions Support Grants � Mandatory (COVID-19),Local Restrictions Support Grants (COVID-19),"1,334.00",Treasure the Day
24/11/2020,General Grants,Housing Options,"27,840.00",Trent & Dove Housing
21/10/2020,Lettings Service,Housing Options,"20,000.00",Trent & Dove Housing
21/10/2020,Rents,Housing Options - Accommodation,"1,082.04",Trent & Dove Housing
16/11/2020,Rents,Housing Options - Accommodation,"1,274.00",Trent & Dove Housing
21/10/2020,Rents,Housing Options - Accommodation,"2,575.00",Trent & Dove Housing
30/11/2020,Local Restrictions Support Grants � Mandatory (COVID-19),Local Restrictions Support Grants (COVID-19),"2,000.00",Trent Furnishing Co Ltd
21/12/2020,Local Restrictions Support Grants � Mandatory (COVID-19),Local Restrictions Support Grants (COVID-19),"1,334.00",Trent Trophies
27/11/2020,Local Restrictions Support Grants � Mandatory (COVID-19),Local Restrictions Support Grants (COVID-19),"1,334.00",Trent Vehicle solutions
10/12/2020,Local Restrictions Support Grants � Mandatory (COVID-19),Local Restrictions Support Grants (COVID-19),"1,334.00",Trentside Cricket Club
21/12/2020,Local Restrictions Support Grants � Mandatory (COVID-19),Local Restrictions Support Grants (COVID-19),"1,334.00",TROJAN HORSE PUB CO LIMITED
08/09/2020,Repairs and Maintenance of Car Park Ticket Machines,Community and Civil Enforcement,723.05,TSC Signs Ltd
10/12/2020,Local Restrictions Support Grants � Mandatory (COVID-19),Local Restrictions Support Grants (COVID-19),"2,000.00",TTG Inns Ltd
30/11/2020,Local Restrictions Support Grants � Mandatory (COVID-19),Local Restrictions Support Grants (COVID-19),"1,334.00",Tutbury Castle Trading Ltd
10/12/2020,Local Restrictions Support Grants � Mandatory (COVID-19),Local Restrictions Support Grants (COVID-19),"1,334.00",Tutbury Present Co Ltd
21/12/2020,Local Restrictions Support Grants � Mandatory (COVID-19),Local Restrictions Support Grants (COVID-19),"1,334.00",Tutbury Village Hall
24/09/2020,Grounds Maintenance,Open Spaces,"2,675.00",Tutor Hall UK Ltd
27/11/2020,Local Restrictions Support Grants � Mandatory (COVID-19),Local Restrictions Support Grants (COVID-19),"1,334.00",Twine Clothing Ltd
04/12/2020,Local Restrictions Support Grants � Mandatory (COVID-19),Local Restrictions Support Grants (COVID-19),"1,334.00",U Phone solutions
04/12/2020,Local Restrictions Support Grants � Mandatory (COVID-19),Local Restrictions Support Grants (COVID-19),"1,334.00",U Phone solutions
10/12/2020,Local Restrictions Support Grants � Mandatory (COVID-19),Local Restrictions Support Grants (COVID-19),"1,334.00",Unique Fashions
21/08/2020,Software Licenses & Contracts,Income Management,"20,079.50",Unit 4 Business Software (Ireland) Ltd
12/11/2020,Software Licenses & Contracts,Financial Management Unit,"7,605.98",Unit 4 Business Software Limited
26/10/2020,Training Expenses,Corporate Training,"3,700.00",University of Derby
10/12/2020,Local Restrictions Support Grants � Mandatory (COVID-19),Local Restrictions Support Grants (COVID-19),"2,000.00",Urban Chef (Burton) Ltd
27/11/2020,Local Restrictions Support Grants � Mandatory (COVID-19),Local Restrictions Support Grants (COVID-19),"1,334.00",Utopia
21/12/2020,Local Restrictions Support Grants � Mandatory (COVID-19),Local Restrictions Support Grants (COVID-19),"1,334.00",Uttoxeter Heath Community Centre
25/11/2020,Local Restrictions Support Grants � Mandatory (COVID-19),Local Restrictions Support Grants (COVID-19),"1,334.00",Uttoxeter Shoe Repairs Ltd
26/11/2020,General Grants,Burton Retail Market,"4,396.00",Uttoxeter Town Council
18/12/2020,Local Restrictions Support Grants � Mandatory (COVID-19),Local Restrictions Support Grants (COVID-19),"1,334.00",V29 V Green
25/11/2020,Local Restrictions Support Grants � Mandatory (COVID-19),Local Restrictions Support Grants (COVID-19),"1,334.00",Vanessa Davies Ltd
29/10/2020,Consultants,Environmental Health,"1,440.00",Vanguardia Ltd
25/11/2020,Local Restrictions Support Grants � Mandatory (COVID-19),Local Restrictions Support Grants (COVID-19),"2,000.00",Vayper Ltd
30/09/2020,Third Party Payments,Recycling,"1,447.63",Vital Earth GB Ltd
30/11/2020,Third Party Payments,Recycling,841.35,Vital Earth GB Ltd
30/09/2020,Consultants,Environmental Health,630.81,Vivid Resourcing
04/10/2020,Consultants,Environmental Health,946.00,Vivid Resourcing
07/10/2020,Consultants,Environmental Health,967.50,Vivid Resourcing
14/10/2020,Mobile Telephones,ICT,634.93,Vodafone Limited
16/11/2020,Mobile Telephones,ICT,617.76,Vodafone Limited
11/12/2020,Telephones,Switchboard and Reception,"1,539.51",Vodafone T/A Cable & Wireless UK
15/10/2020,Telephones,Switchboard and Reception,"1,633.35",Vodafone T/A Cable & Wireless UK
13/11/2020,Telephones,Switchboard and Reception,"1,433.34",Vodafone T/A Cable & Wireless UK
27/10/2020,IT Links to Remote Sites,ICT,"4,060.43",Vodafone T/A Cable & Wireless UK
30/11/2020,Local Restrictions Support Grants � Mandatory (COVID-19),Local Restrictions Support Grants (COVID-19),"1,334.00",W J Rimmer Ltd
04/12/2020,Local Restrictions Support Grants � Mandatory (COVID-19),Local Restrictions Support Grants (COVID-19),"2,000.00",W J SKIPPER HAULAGE LTD
04/12/2020,Local Restrictions Support Grants � Mandatory (COVID-19),Local Restrictions Support Grants (COVID-19),"2,000.00",W J SKIPPER HAULAGE LTD
21/12/2020,Local Restrictions Support Grants � Mandatory (COVID-19),Local Restrictions Support Grants (COVID-19),"1,334.00",ward flooring ltd
07/10/2020,Water Services,Cemeteries,"1,211.39",Water Plus Ltd
02/07/2020,Water Services,Public Conveniences,907.29,Water Plus Ltd
08/09/2020,Water Services,Public Conveniences,"1,113.61",Water Plus Ltd
02/10/2020,Maintenance Contracts,Facilities Management,704.68,Waterlogic GB Limited
20/11/2020,Local Restrictions Support Grants � Mandatory (COVID-19),Local Restrictions Support Grants (COVID-19),"1,334.00",Weighbridge Inn Burton
30/11/2020,Training Expenses,Corporate Training,"3,290.00",Wellbeing People Limited
11/11/2020,Repairs & Maintenance to Buildings,Public Conveniences,"1,042.38",Western Power Distribution
30/09/2020,Third Party Payments,Recycling,"8,106.66",Willshee's Waste & Recycling Ltd
30/11/2020,Third Party Payments,Recycling,"7,497.00",Willshee's Waste & Recycling Ltd
31/10/2020,Third Party Payments,Recycling,"7,290.18",Willshee's Waste & Recycling Ltd
26/11/2020,Wasps Expenditure,Councillors Community Fund,500.00,Winshill Football Club
25/11/2020,Local Restrictions Support Grants � Mandatory (COVID-19),Local Restrictions Support Grants (COVID-19),"2,000.00",Winshill Neighbourhood resource Centre
18/12/2020,Local Restrictions Support Grants � Mandatory (COVID-19),Local Restrictions Support Grants (COVID-19),"1,334.00",Wood and Home
23/11/2020,Local Restrictions Support Grants � Mandatory (COVID-19),Local Restrictions Support Grants (COVID-19),"2,000.00",Wooden Spoon The Cookshop
18/12/2020,Local Restrictions Support Grants � Mandatory (COVID-19),Local Restrictions Support Grants (COVID-19),"1,334.00",Wootton Cricket Club
13/11/2020,Repairs & Maintenance to Buildings,Facilities Management,590.00,Workplatform Ltd
30/09/2020,Other Equipment,Community and Civil Enforcement,"8,715.49",WSP Global Inc.
